Workbook

Sheet замовлення
B1: ЗАМОВНИК
B2: місто
B3: телефон
B4: контактна особа
B5: дд.мм.гггг | C5: - дата оформлення замовлення
B6: дд.мм.гггг | C6: - дата відвантаження
B7: ПРИМІТКИ
B12: Артикул | C12: Назва | D12: Кількість ОВ | E12: Ціна з ПДВ за ОВ | G12: Залишок
A13: =A12+1 -> 1 | C13: =IF(TYPE(VLOOKUP(B13,price!$A$7:$E$8816,2,FALSE))=16,"",VLOOKUP(B13,price!$A$7:$E$8816,2,FALSE)) ->  | E13: =IF(TYPE(VLOOKUP(B13,price!$A$7:$E$8816,5,FALSE))=16,"",VLOOKUP(B13,price!$A$7:$E$8816,5,FALSE)) ->  | G13: =IF(TYPE(VLOOKUP(B13,залишок!A:B,2,FALSE))=16,"",VLOOKUP(B13,залишок!A:B,2,FALSE)) -> 
A14: 2 | C14: =IF(TYPE(VLOOKUP(B14,price!$A$7:$E$8816,2,FALSE))=16,"",VLOOKUP(B14,price!$A$7:$E$8816,2,FALSE)) ->  | E14: =IF(TYPE(VLOOKUP(B14,price!$A$7:$E$8816,5,FALSE))=16,"",VLOOKUP(B14,price!$A$7:$E$8816,5,FALSE)) ->  | G14: =IF(TYPE(VLOOKUP(B14,залишок!A:B,2,FALSE))=16,"",VLOOKUP(B14,залишок!A:B,2,FALSE)) -> 
A15: 3 | C15: =IF(TYPE(VLOOKUP(B15,price!$A$7:$E$8816,2,FALSE))=16,"",VLOOKUP(B15,price!$A$7:$E$8816,2,FALSE)) ->  | E15: =IF(TYPE(VLOOKUP(B15,price!$A$7:$E$8816,5,FALSE))=16,"",VLOOKUP(B15,price!$A$7:$E$8816,5,FALSE)) ->  | G15: =IF(TYPE(VLOOKUP(B15,залишок!A:B,2,FALSE))=16,"",VLOOKUP(B15,залишок!A:B,2,FALSE)) -> 
A16: 4 | C16: =IF(TYPE(VLOOKUP(B16,price!$A$7:$E$8816,2,FALSE))=16,"",VLOOKUP(B16,price!$A$7:$E$8816,2,FALSE)) ->  | E16: =IF(TYPE(VLOOKUP(B16,price!$A$7:$E$8816,5,FALSE))=16,"",VLOOKUP(B16,price!$A$7:$E$8816,5,FALSE)) ->  | G16: =IF(TYPE(VLOOKUP(B16,залишок!A:B,2,FALSE))=16,"",VLOOKUP(B16,залишок!A:B,2,FALSE)) -> 
A17: 5 | C17: =IF(TYPE(VLOOKUP(B17,price!$A$7:$E$8816,2,FALSE))=16,"",VLOOKUP(B17,price!$A$7:$E$8816,2,FALSE)) ->  | E17: =IF(TYPE(VLOOKUP(B17,price!$A$7:$E$8816,5,FALSE))=16,"",VLOOKUP(B17,price!$A$7:$E$8816,5,FALSE)) ->  | G17: =IF(TYPE(VLOOKUP(B17,залишок!A:B,2,FALSE))=16,"",VLOOKUP(B17,залишок!A:B,2,FALSE)) -> 
A18: 6 | C18: =IF(TYPE(VLOOKUP(B18,price!$A$7:$E$8816,2,FALSE))=16,"",VLOOKUP(B18,price!$A$7:$E$8816,2,FALSE)) ->  | E18: =IF(TYPE(VLOOKUP(B18,price!$A$7:$E$8816,5,FALSE))=16,"",VLOOKUP(B18,price!$A$7:$E$8816,5,FALSE)) ->  | G18: =IF(TYPE(VLOOKUP(B18,залишок!A:B,2,FALSE))=16,"",VLOOKUP(B18,залишок!A:B,2,FALSE)) -> 
A19: 7 | C19: =IF(TYPE(VLOOKUP(B19,price!$A$7:$E$8816,2,FALSE))=16,"",VLOOKUP(B19,price!$A$7:$E$8816,2,FALSE)) ->  | E19: =IF(TYPE(VLOOKUP(B19,price!$A$7:$E$8816,5,FALSE))=16,"",VLOOKUP(B19,price!$A$7:$E$8816,5,FALSE)) ->  | G19: =IF(TYPE(VLOOKUP(B19,залишок!A:B,2,FALSE))=16,"",VLOOKUP(B19,залишок!A:B,2,FALSE)) -> 
A20: 8 | C20: =IF(TYPE(VLOOKUP(B20,price!$A$7:$E$8816,2,FALSE))=16,"",VLOOKUP(B20,price!$A$7:$E$8816,2,FALSE)) ->  | E20: =IF(TYPE(VLOOKUP(B20,price!$A$7:$E$8816,5,FALSE))=16,"",VLOOKUP(B20,price!$A$7:$E$8816,5,FALSE)) ->  | G20: =IF(TYPE(VLOOKUP(B20,залишок!A:B,2,FALSE))=16,"",VLOOKUP(B20,залишок!A:B,2,FALSE)) -> 
A21: 9 | C21: =IF(TYPE(VLOOKUP(B21,price!$A$7:$E$8816,2,FALSE))=16,"",VLOOKUP(B21,price!$A$7:$E$8816,2,FALSE)) ->  | E21: =IF(TYPE(VLOOKUP(B21,price!$A$7:$E$8816,5,FALSE))=16,"",VLOOKUP(B21,price!$A$7:$E$8816,5,FALSE)) ->  | G21: =IF(TYPE(VLOOKUP(B21,залишок!A:B,2,FALSE))=16,"",VLOOKUP(B21,залишок!A:B,2,FALSE)) -> 
C22: ЗАГАЛОМ | D22: =SUM(D13:D21) -> 0 | E22: =SUMPRODUCT(E13:E21,D13:D21) -> 0
D23: шт | E23: грн
A24: Ціни в прайсі мужуть бути відмінними від цін, зазначених у рахунках-фактурах внаслідок:
B25: 1. змін цін ДП "ПОЛО-Електрообладнання" в одностороньому порядку без попереднього повідомлення
B26: 2. різного алгоритму округлення чисел бухгалтерської програми та MS Excel
A27: Лише ціни в рахунках-фактурах є остаточними.
A29: * для заповнення таблиці Вам необхідно ввести правильний артикул виробу, відповідно до нашого прайс-листа та кількість.
A30: При вводі правильного артикулу назва та ціна з'являться автоматично. Якщо ж після вводу артикулу з'явилася така
A31: інформація - #Н/Д - це означає, що Ви ввели хибний або неіснуючий артикул.
B35: Підпис ___________________ / /

Sheet price
D1: 0 | E1: знижка
D2: Всі ціни гривнях,
D3: в т.ч. ПДВ, 20%
D5: Дата: | E5: 2024-02-12
A6: Артикул | B6: Опис товару | C6: ABC | D6: ОВ | E6: Ціна зі знижкою | F6: Ціна без знижки | G6: фільтр-1 | H6: фільтр-2 | I6: фільтр-3 | J6: кратність (!!!) замовлення | K6: пакування мале | L6: пакування велике | M6: на паллеті | N6: Виробник / розробник | O6: Країна поход-ження | P6: Код УКТ ЗЕД | Q6: Код EAN
A7: 161 | B7: Датчик температури підлоги | C7: B | D7: шт | E7: =ROUND(F7*(1-скидка),2) -> 1008.58 | F7: 1008.58 | G7: berker-розетки/вимикачі | H7: універсальні | K7: 1 | L7: 100 | M7: 0 | N7: Berker GmbH & Co. KG, Klagebach 38, Schalksmuhle, Нiмеччина | O7: Нiмеччина | P7: 8533401000 | Q7: 4011334218814
A8: 1037 | B8: Панель для вводу кабеля, пол.білизна, 1930 | R.classic | C8: C | D8: шт | E8: 243.9 | F8: 243.9 | G8: berker-розетки/вимикачі | H8: 1930 | I8: пол.білий | J8: 10 | K8: 10 | L8: 0 | M8: 0 | N8: Berker GmbH & Co. KG, Klagebach 38, Schalksmuhle, Нiмеччина | O8: Нiмеччина | P8: 3925908000 | Q8: 4011334003144
A9: 1040 | B9: Накладка для розеток для гучномовців, USB-розеток, пол.білизна, 1930/Glas | C9: C | D9: шт | E9: 560.32 | F9: 560.32 | G9: berker-розетки/вимикачі | H9: 1930+Glas | I9: пол.білий | J9: 10 | K9: 10 | L9: 0 | M9: 0 | N9: Berker GmbH & Co. KG, Klagebach 38, Schalksmuhle, Нiмеччина | O9: Нiмеччина | P9: 3925908000 | Q9: 4011334003205
A10: 1061 | B10: Подвійна штепсельна розетка з вирівнюванням потенціалів | C10: C | D10: шт | E10: 1225.29 | F10: 1225.29 | G10: berker-розетки/вимикачі | H10: універсальні | J10: 10 | K10: 10 | L10: 0 | M10: 0 | N10: Berker GmbH & Co. KG, Klagebach 38, Schalksmuhle, Нiмеччина | O10: Нiмеччина | P10: 8536699090 | Q10: 4011334003779
A11: 1090 | B11: Накладка скляна для поворотних вимикачів, GLASSERIE | C11: C | D11: шт | E11: 1120.23 | F11: 1120.23 | G11: berker-розетки/вимикачі | H11: Glas | J11: 10 | K11: 10 | L11: 0 | M11: 0 | N11: Berker GmbH & Co. KG, Klagebach 38, Schalksmuhle, Нiмеччина | O11: Нiмеччина | P11: 7020008000 | Q11: 4011334005988
A12: 1091 | B12: Рамка 1Х скляна GLASSERIE | C12: C | D12: шт | E12: 1120.23 | F12: 1120.23 | G12: berker-розетки/вимикачі | H12: Glas | J12: 10 | K12: 10 | L12: 0 | M12: 0 | N12: Berker GmbH & Co. KG, Klagebach 38, Schalksmuhle, Нiмеччина | O12: Нiмеччина | P12: 7020008000 | Q12: 4011334006022
A13: 1094 | B13: Накладка скляна кінцева для поворотних вимикачів, GLASSERIE | C13: C | D13: шт | E13: 1680.55 | F13: 1680.55 | G13: berker-розетки/вимикачі | H13: Glas | J13: 10 | K13: 10 | L13: 0 | M13: 0 | N13: Berker GmbH & Co. KG, Klagebach 38, Schalksmuhle, Нiмеччина | O13: Нiмеччина | P13: 7020008000 | Q13: 4011334006145
A14: 1095 | B14: Накладка скляна середня для поворотних вимикачів, GLASSERIE | C14: C | D14: шт | E14: 1680.55 | F14: 1680.55 | G14: berker-розетки/вимикачі | H14: Glas | J14: 10 | K14: 10 | L14: 0 | M14: 0 | N14: Berker GmbH & Co. KG, Klagebach 38, Schalksmuhle, Нiмеччина | O14: Нiмеччина | P14: 7020008000 | Q14: 4011334006183
A15: 1102 | B15: Рамка 2Х скляна GLASSERIE | C15: C | D15: шт | E15: 2800.78 | F15: 2800.78 | G15: berker-розетки/вимикачі | H15: Glas | J15: 2 | K15: 2 | L15: 0 | M15: 0 | N15: Berker GmbH & Co. KG, Klagebach 38, Schalksmuhle, Нiмеччина | O15: Нiмеччина | P15: 7020008000 | Q15: 4011334006480
A16: 1220 | B16: Кришка для свтлового сигналу Е14, без кольору, прозора, плоска | C16: C | D16: шт | E16: 176.75 | F16: 176.75 | G16: berker-розетки/вимикачі | H16: універсальні | J16: 10 | K16: 10 | L16: 0 | M16: 0 | N16: Berker GmbH & Co. KG, Klagebach 38, Schalksmuhle, Нiмеччина | O16: Нiмеччина | P16: 3925908000 | Q16: 4011334009481
A17: 1221 | B17: Кришка для кнопки та світл.сигналу Е10, без кольору прозора, 1930/Glas | C17: C | D17: шт | E17: 588.34 | F17: 588.34 | G17: berker-розетки/вимикачі | H17: 1930+Glas | I17: універсальні | J17: 10 | K17: 10 | L17: 0 | M17: 0 | N17: Berker GmbH & Co. KG, Klagebach 38, Schalksmuhle, Нiмеччина | O17: Нiмеччина | P17: 3925908000 | Q17: 4011334009498
A18: 1222 | B18: Кришка для кнопки та світл.сигналу Е10, червона прозора, 1930/Glas | C18: C | D18: шт | E18: 685.98 | F18: 685.98 | G18: berker-розетки/вимикачі | H18: 1930+Glas | I18: універсальні | J18: 10 | K18: 10 | L18: 0 | M18: 0 | N18: Berker GmbH & Co. KG, Klagebach 38, Schalksmuhle, Нiмеччина | O18: Нiмеччина | P18: 3925908000 | Q18: 4011334009504
A19: 1225 | B19: Заглушка для кнопки та світл.сигналу Е10, пол.білизна, 1930/Glas | C19: C | D19: шт | E19: 588.34 | F19: 588.34 | G19: berker-розетки/вимикачі | H19: 1930+Glas | I19: пол.білий | J19: 10 | K19: 10 | L19: 0 | M19: 0 | N19: Berker GmbH & Co. KG, Klagebach 38, Schalksmuhle, Нiмеччина | O19: Нiмеччина | P19: 3925908000 | Q19: 4011334009511
A20: 1226 | B20: Заглушка для Е10, символ 'Світло', пол.білизна, 1930/Glas | C20: C | D20: шт | E20: 685.98 | F20: 685.98 | G20: berker-розетки/вимикачі | H20: 1930+Glas | I20: пол.білий | J20: 10 | K20: 10 | L20: 0 | M20: 0 | N20: Berker GmbH & Co. KG, Klagebach 38, Schalksmuhle, Нiмеччина | O20: Нiмеччина | P20: 3925908000 | Q20: 4011334212706
A21: 1227 | B21: Заглушка для Е10, символ 'Дзвоник', пол.білизна, 1930/Glas | C21: C | D21: шт | E21: 685.98 | F21: 685.98 | G21: berker-розетки/вимикачі | H21: 1930+Glas | I21: пол.білий | J21: 10 | K21: 10 | L21: 0 | M21: 0 | N21: Berker GmbH & Co. KG, Klagebach 38, Schalksmuhle, Нiмеччина | O21: Нiмеччина | P21: 3925908000 | Q21: 4011334212713
A22: 1229 | B22: Заглушка для кнопки та світл.сигналу Е10, червона прозора, 1930/Glas | C22: C | D22: шт | E22: 685.98 | F22: 685.98 | G22: berker-розетки/вимикачі | H22: 1930+Glas | I22: універсальні | J22: 10 | K22: 10 | L22: 0 | M22: 0 | N22: Berker GmbH & Co. KG, Klagebach 38, Schalksmuhle, Нiмеччина | O22: Нiмеччина | P22: 3925908000 | Q22: 4011334009535
A23: 1230 | B23: Кришка для свтлового сигналу Е14, без кольору, прозора, висока | C23: C | D23: шт | E23: 176.75 | F23: 176.75 | G23: berker-розетки/вимикачі | H23: універсальні | J23: 10 | K23: 10 | L23: 330 | M23: 0 | N23: Berker GmbH & Co. KG, Klagebach 38, Schalksmuhle, Нiмеччина | O23: Нiмеччина | P23: 3925908000 | Q23: 4011334009542
A24: 1231 | B24: Кришка для свтлового сигналу Е14, червона, прозора, висока | C24: C | D24: шт | E24: 176.75 | F24: 176.75 | G24: berker-розетки/вимикачі | H24: універсальні | J24: 10 | K24: 10 | L24: 330 | M24: 0 | N24: Berker GmbH & Co. KG, Klagebach 38, Schalksmuhle, Нiмеччина | O24: Нiмеччина | P24: 3925908000 | Q24: 4011334009559
A25: 1232 | B25: Кришка для свтлового сигналу Е14, зелена, прозора, висока | C25: C | D25: шт | E25: 176.75 | F25: 176.75 | G25: berker-розетки/вимикачі | H25: універсальні | J25: 10 | K25: 10 | L25: 330 | M25: 0 | N25: Berker GmbH & Co. KG, Klagebach 38, Schalksmuhle, Нiмеччина | O25: Нiмеччина | P25: 3925908000 | Q25: 4011334009566
A26: 1279 | B26: Заглушка для нажимних кнопок та світлових сигналів Е10, червона | C26: C | D26: шт | E26: 186.22 | F26: 186.22 | G26: berker-розетки/вимикачі | H26: універсальні | J26: 10 | K26: 10 | L26: 0 | M26: 0 | N26: Berker GmbH & Co. KG, Klagebach 38, Schalksmuhle, Нiмеччина | O26: Нiмеччина | P26: 3925908000 | Q26: 4011334010456
A27: 1280 | B27: Кришка для нажимних кнопок та світлових сигналів Е10, без кольору | C27: C | D27: шт | E27: 120.3 | F27: 120.3 | G27: berker-розетки/вимикачі | H27: універсальні | J27: 10 | K27: 10 | L27: 0 | M27: 0 | N27: Berker GmbH & Co. KG, Klagebach 38, Schalksmuhle, Нiмеччина | O27: Нiмеччина | P27: 3925908000 | Q27: 4011334010463
A28: 1281 | B28: Кришка для нажимних кнопок та світлових сигналів Е10, червона | C28: C | D28: шт | E28: 93.94 | F28: 93.94 | G28: berker-розетки/вимикачі | H28: універсальні | J28: 10 | K28: 10 | L28: 0 | M28: 0 | N28: Berker GmbH & Co. KG, Klagebach 38, Schalksmuhle, Нiмеччина | O28: Нiмеччина | P28: 3925908000 | Q28: 4011334010470
A29: 1282 | B29: Кришка для нажимних кнопок та світлових сигналів Е10, жовта | C29: C | D29: шт | E29: 93.94 | F29: 93.94 | G29: berker-розетки/вимикачі | H29: універсальні | J29: 10 | K29: 10 | L29: 0 | M29: 0 | N29: Berker GmbH & Co. KG, Klagebach 38, Schalksmuhle, Нiмеччина | O29: Нiмеччина | P29: 3925908000 | Q29: 4011334010487
A30: 1283 | B30: Кришка для нажимних кнопок та світлових сигналів Е10, зелена | C30: C | D30: шт | E30: 93.94 | F30: 93.94 | G30: berker-розетки/вимикачі | H30: універсальні | J30: 10 | K30: 10 | L30: 0 | M30: 0 | N30: Berker GmbH & Co. KG, Klagebach 38, Schalksmuhle, Нiмеччина | O30: Нiмеччина | P30: 3925908000 | Q30: 4011334010494
A31: 1289 | B31: Захисна пластина для накладки інформаційного світлового сигналу, червона | C31: C | D31: шт | E31: 171.8 | F31: 171.8 | G31: berker-розетки/вимикачі | H31: універсальні | J31: 10 | K31: 10 | L31: 0 | M31: 0 | N31: Berker GmbH & Co. KG, Klagebach 38, Schalksmuhle, Нiмеччина | O31: Нiмеччина | P31: 3925908000 | Q31: 4011334210979
A32: 1311 | B32: Скляна накладка, прозора, 1-місце, Berker TS | C32: C | D32: шт | E32: 2520.62 | F32: 2520.62 | G32: berker-сенсори | J32: 1 | K32: 1 | L32: 0 | M32: 0 | N32: Berker GmbH & Co. KG, Klagebach 38, Schalksmuhle, Нiмеччина | O32: Нiмеччина | P32: 8538909900 | Q32: 4011334213536
A33: 1321 | B33: Скляна накладка, прозора, 2-місця, Berker TS | C33: C | D33: шт | E33: 2754.22 | F33: 2754.22 | G33: berker-сенсори | J33: 1 | K33: 1 | L33: 0 | M33: 0 | N33: Berker GmbH & Co. KG, Klagebach 38, Schalksmuhle, Нiмеччина | O33: Нiмеччина | P33: 8538909900 | Q33: 4011334213543
A34: 1341 | B34: Скляна накладка, прозора, 4-місця, Berker TS | C34: C | D34: шт | E34: 3361.1 | F34: 3361.1 | G34: berker-сенсори | J34: 1 | K34: 1 | L34: 0 | M34: 0 | N34: Berker GmbH & Co. KG, Klagebach 38, Schalksmuhle, Нiмеччина | O34: Нiмеччина | P34: 8538909900 | Q34: 4011334213550
A35: 1366 | B35: Скляна накладка, прозора, 6-місць, Berker TS | C35: C | D35: шт | E35: 8169.14 | F35: 8169.14 | G35: berker-сенсори | J35: 1 | K35: 1 | L35: 0 | M35: 0 | N35: Berker GmbH & Co. KG, Klagebach 38, Schalksmuhle, Нiмеччина | O35: Нiмеччина | P35: 8538909900 | Q35: 4011334253730
A36: 1388 | B36: Скляна накладка, прозора, 8-місць, Berker TS | C36: C | D36: шт | E36: 10409.59 | F36: 10409.59 | G36: berker-сенсори | J36: 1 | K36: 1 | L36: 0 | M36: 0 | N36: Berker GmbH & Co. KG, Klagebach 38, Schalksmuhle, Нiмеччина | O36: Нiмеччина | P36: 8538909900 | Q36: 4011334253747
A37: 1391 | B37: Скляна накладка, прозора, 1-місце, Berker TS | C37: C | D37: шт | E37: 2520.62 | F37: 2520.62 | G37: berker-сенсори | J37: 1 | K37: 1 | L37: 0 | M37: 0 | N37: Berker GmbH & Co. KG, Klagebach 38, Schalksmuhle, Нiмеччина | O37: Нiмеччина | P37: 8538909900 | Q37: 4011334249306
A38: 1392 | B38: Скляна накладка, прозора, 2-місця, Berker TS | C38: C | D38: шт | E38: 2754.22 | F38: 2754.22 | G38: berker-сенсори | J38: 1 | K38: 1 | L38: 0 | M38: 0 | N38: Berker GmbH & Co. KG, Klagebach 38, Schalksmuhle, Нiмеччина | O38: Нiмеччина | P38: 8538909900 | Q38: 4011334249313
A39: 1394 | B39: Скляна накладка, прозора, 4-місця, Berker TS | C39: C | D39: шт | E39: 3361.1 | F39: 3361.1 | G39: berker-сенсори | J39: 1 | K39: 1 | L39: 0 | M39: 0 | N39: Berker GmbH & Co. KG, Klagebach 38, Schalksmuhle, Нiмеччина | O39: Нiмеччина | P39: 8538909900 | Q39: 4011334012931
A40: 1407 | B40: Центр.панель для розетки UAE, пол.білизна, 1930/Glas | C40: C | D40: шт | E40: 560.32 | F40: 560.32 | G40: berker-розетки/вимикачі | H40: 1930+Glas | I40: пол.білий | J40: 10 | K40: 10 | L40: 0 | M40: 0 | N40: Berker GmbH & Co. KG, Klagebach 38, Schalksmuhle, Нiмеччина | O40: Нiмеччина | P40: 3925908000 | Q40: 4011334237228
A41: 1409 | B41: Накладка для розетки UAE/E-DAT, пол.білизна, 1930/Glas | C41: C | D41: шт | E41: 560.32 | F41: 560.32 | G41: berker-розетки/вимикачі | H41: 1930+Glas | I41: пол.білий | J41: 10 | K41: 10 | L41: 0 | M41: 0 | N41: Berker GmbH & Co. KG, Klagebach 38, Schalksmuhle, Нiмеччина | O41: Нiмеччина | P41: 3925908000 | Q41: 4011334237242
A42: 1600 | B42: Елемент підсвічування 400В/0.5мА | C42: C | D42: шт | E42: 238.14 | F42: 238.14 | G42: berker-розетки/вимикачі | H42: універсальні | J42: 10 | K42: 10 | L42: 0 | M42: 0 | N42: Berker GmbH & Co. KG, Klagebach 38, Schalksmuhle, Нiмеччина | O42: Нiмеччина | P42: 8539398000 | Q42: 4011334219293
A43: 1601 | B43: Елемент підсвічування Е10, 1.35мА/230В | C43: C | D43: шт | E43: 215.89 | F43: 215.89 | G43: berker-розетки/вимикачі | H43: універсальні | J43: 100 | K43: 100 | L43: 0 | M43: 0 | N43: Berker GmbH & Co. KG, Klagebach 38, Schalksmuhle, Нiмеччина | O43: Нiмеччина | P43: 8539398000 | Q43: 4011334016984
A44: 1609 | B44: Елемент підсвічування для розетки з з/к, 1.5мА/230В | C44: C | D44: шт | E44: 186.22 | F44: 186.22 | G44: berker-розетки/вимикачі | H44: універсальні | J44: 1 | K44: 1 | L44: 0 | M44: 0 | N44: Berker GmbH & Co. KG, Klagebach 38, Schalksmuhle, Нiмеччина | O44: Нiмеччина | P44: 8539398000 | Q44: 4011334017097
A45: 1647 | B45: Центр.панель вимикача з ручкою. Пластик. пол.білизна. 1930/Glas | C45: B | D45: шт | E45: 574.33 | F45: 574.33 | G45: berker-розетки/вимикачі | H45: 1930+Glas | I45: пол.білий | K45: 1 | L45: 0 | M45: 0 | N45: Berker GmbH & Co. KG, Klagebach 38, Schalksmuhle, Нiмеччина | O45: Нiмеччина | P45: 3925908000 | Q45: 4011334321415
A46: 1675 | B46: Елемент підсвічування, 230В/1мА | C46: B | D46: шт | E46: 130.6 | F46: 130.6 | G46: berker-розетки/вимикачі | H46: універсальні | K46: 10 | L46: 0 | M46: 0 | N46: Berker GmbH & Co. KG, Klagebach 38, Schalksmuhle, Нiмеччина | O46: Нiмеччина | P46: 8539398000 | Q46: 4011334282730
A47: 1676 | B47: Елемент підсвічування, 6В/35мА | C47: C | D47: шт | E47: 168.1 | F47: 168.1 | G47: berker-розетки/вимикачі | H47: універсальні | J47: 10 | K47: 10 | L47: 0 | M47: 38400 | N47: Berker GmbH & Co. KG, Klagebach 38, Schalksmuhle, Нiмеччина | O47: Нiмеччина | P47: 8539398000 | Q47: 4011334293316
A48: 1678 | B48: Елемент підсвічування світлодіодний Е10, 0.4мА/230В | C48: C | D48: шт | E48: 583.8 | F48: 583.8 | G48: berker-розетки/вимикачі | H48: універсальні | J48: 60 | K48: 60 | L48: 0 | M48: 0 | N48: Berker GmbH & Co. KG, Klagebach 38, Schalksmuhle, Нiмеччина | O48: Нiмеччина | P48: 8539398000 | Q48: 4011334293750
A49: 1679 | B49: Елемент підсвічування світлодіодний Е14, 4.2мА/230В | C49: C | D49: шт | E49: 785.27 | F49: 785.27 | G49: berker-розетки/вимикачі | H49: універсальні | J49: 20 | K49: 20 | L49: 0 | M49: 0 | N49: Berker GmbH & Co. KG, Klagebach 38, Schalksmuhle, Нiмеччина | O49: Нiмеччина | P49: 8539398000 | Q49: 4011334293804
A50: 1680 | B50: Елемент підсвічування зі світлодіодами з N-клемою для подвійного вимикача | C50: C | D50: шт | E50: 462.26 | F50: 462.26 | G50: berker-розетки/вимикачі | H50: універсальні | J50: 1 | K50: 1 | L50: 0 | M50: 0 | N50: Berker GmbH & Co. KG, Klagebach 38, Schalksmuhle, Нiмеччина | O50: Нiмеччина | P50: 8539398000 | Q50: 4011334304371
A51: 1686 | B51: Елемент підсвічування зі світлодіодами білий 230В/1мА, для вимикачів/кнопок | C51: B | D51: шт | E51: 210.12 | F51: 210.12 | G51: berker-розетки/вимикачі | H51: універсальні | K51: 10 | L51: 0 | M51: 0 | N51: Berker GmbH & Co. KG, Klagebach 38, Schalksmuhle, Нiмеччина | O51: Нiмеччина | P51: 8539398000 | Q51: 4011334346883
A52: 1687 | B52: Елемент підсвічування зі світлодіодами синій 12-48В, для вимикачів/кнопок | C52: C | D52: шт | E52: 210.12 | F52: 210.12 | G52: berker-розетки/вимикачі | H52: універсальні | J52: 10 | K52: 10 | L52: 0 | M52: 0 | N52: Berker GmbH & Co. KG, Klagebach 38, Schalksmuhle, Нiмеччина | O52: Нiмеччина | P52: 8539398000 | Q52: 4011334346890
A53: 1809 | B53: Монтажна коробка, Berker TS | C53: C | D53: шт | E53: 420.24 | F53: 420.24 | G53: berker-сенсори | J53: 50 | K53: 50 | L53: 0 | M53: 2000 | N53: Berker GmbH & Co. KG, Klagebach 38, Schalksmuhle, Нiмеччина | O53: Нiмеччина | P53: 3925908000 | Q53: 4011334216124
A54: 1818 | B54: Профільний напівциліндр, з різними замикачами | C54: C | D54: шт | E54: 1225.29 | F54: 1225.29 | G54: berker-розетки/вимикачі | H54: універсальні | J54: 1 | K54: 1 | L54: 0 | M54: 0 | N54: Berker GmbH & Co. KG, Klagebach 38, Schalksmuhle, Нiмеччина | O54: Нiмеччина | P54: 8301409000 | Q54: 4011334018575
A55: 1824 | B55: Монтажна коробка для полих стін, Berker TS | C55: C | D55: шт | E55: 560.32 | F55: 560.32 | G55: berker-сенсори | J55: 50 | K55: 50 | L55: 0 | M55: 2000 | N55: Berker GmbH & Co. KG, Klagebach 38, Schalksmuhle, Нiмеччина | O55: Нiмеччина | P55: 3925908000 | Q55: 4011334216131
A56: 1847 | B56: Захисна накладка для вимикачів/кнопок | C56: C | D56: шт | E56: 35.84 | F56: 35.84 | G56: berker-розетки/вимикачі | H56: універсальні | J56: 10 | K56: 10 | L56: 0 | M56: 0 | N56: Berker GmbH & Co. KG, Klagebach 38, Schalksmuhle, Нiмеччина | O56: Нiмеччина | P56: 8538909900 | Q56: 4011334018711
A57: 1848 | B57: Захисна накладка для штепсельних розеток SCHUKO | C57: C | D57: шт | E57: 37.49 | F57: 37.49 | G57: berker-розетки/вимикачі | H57: універсальні | J57: 10 | K57: 10 | L57: 0 | M57: 0 | N57: Berker GmbH & Co. KG, Klagebach 38, Schalksmuhle, Нiмеччина | O57: Нiмеччина | P57: 8538909900 | Q57: 4011334018728
A58: 1849 | B58: Захисна накладка для розеток та вимикачів | C58: C | D58: шт | E58: 44.5 | F58: 44.5 | G58: berker-розетки/вимикачі | H58: універсальні | J58: 10 | K58: 10 | L58: 0 | M58: 0 | N58: Berker GmbH & Co. KG, Klagebach 38, Schalksmuhle, Нiмеччина | O58: Нiмеччина | P58: 3925908000 | Q58: 4011334340331
A59: 1870 | B59: Монтажная коробка 2-місна, BERKER TS / TS Crystal / TS Sensor | C59: C | D59: шт | E59: 392.22 | F59: 392.22 | G59: berker-сенсори | J59: 1 | K59: 1 | L59: 0 | M59: 0 | N59: Berker GmbH & Co. KG, Klagebach 38, Schalksmuhle, Нiмеччина | O59: Нiмеччина | P59: 8538909900 | Q59: 4011334294092
A60: 1884 | B60: Фланець IP44 для виробів Berker/Lumina | C60: B | D60: шт | E60: 46.14 | F60: 46.14 | G60: berker-розетки/вимикачі | H60: IP44 | I60: частини | K60: 10 | L60: 270 | M60: 10800 | N60: Berker GmbH & Co. KG, Klagebach 38, Schalksmuhle, Нiмеччина | O60: Нiмеччина | P60: 3925908000 | Q60: 4011334019459
A61: 1989 | B61: Набір для модуля Chich, пол.білизна/червоний | C61: C | D61: шт | E61: 2004.79 | F61: 2004.79 | G61: berker-розетки/вимикачі | H61: універсальні | J61: 1 | K61: 1 | L61: 0 | M61: 0 | N61: Berker GmbH & Co. KG, Klagebach 38, Schalksmuhle, Нiмеччина | O61: Нiмеччина | P61: 8536901000 | Q61: 4011334284161
A62: 1990 | B62: Модуль заглушки | C62: C | D62: шт | E62: 161.92 | F62: 161.92 | G62: berker-розетки/вимикачі | H62: універсальні | J62: 1 | K62: 1 | L62: 0 | M62: 0 | N62: Berker GmbH & Co. KG, Klagebach 38, Schalksmuhle, Нiмеччина | O62: Нiмеччина | P62: 8538909900 | Q62: 4011334284178
A63: 1992 | B63: Відеомодуль Chich, пол.білизна/жовтий | C63: C | D63: шт | E63: 998.69 | F63: 998.69 | G63: berker-розетки/вимикачі | H63: універсальні | J63: 1 | K63: 1 | L63: 0 | M63: 0 | N63: Berker GmbH & Co. KG, Klagebach 38, Schalksmuhle, Нiмеччина | O63: Нiмеччина | P63: 8536901000 | Q63: 4011334308812
A64: 1993 | B64: Модуль S-Video, пол.білизна/чорний | C64: C | D64: шт | E64: 1715.57 | F64: 1715.57 | G64: berker-розетки/вимикачі | H64: універсальні | J64: 1 | K64: 1 | L64: 0 | M64: 0 | N64: Berker GmbH & Co. KG, Klagebach 38, Schalksmuhle, Нiмеччина | O64: Нiмеччина | P64: 8536901000 | Q64: 4011334308829
A65: 1994 | B65: Модуль VGA, пол.білизна/чорний | C65: C | D65: шт | E65: 3675.86 | F65: 3675.86 | G65: berker-розетки/вимикачі | H65: універсальні | J65: 1 | K65: 1 | L65: 0 | M65: 0 | N65: Berker GmbH & Co. KG, Klagebach 38, Schalksmuhle, Нiмеччина | O65: Нiмеччина | P65: 8536901000 | Q65: 4011334308836
A66: 2040 | B66: Таймер механічний, 0-15хв. | C66: C | D66: шт | E66: 3080.94 | F66: 3080.94 | G66: berker-розетки/вимикачі | H66: універсальні | J66: 1 | K66: 1 | L66: 60 | M66: 2400 | N66: Berker GmbH & Co. KG, Klagebach 38, Schalksmuhle, Нiмеччина | O66: Нiмеччина | P66: 9107000000 | Q66: 4011334020608
A67: 2041 | B67: Таймер механічний, 0-120хв. | C67: C | D67: шт | E67: 3080.94 | F67: 3080.94 | G67: berker-розетки/вимикачі | H67: універсальні | J67: 1 | K67: 1 | L67: 60 | M67: 2400 | N67: Berker GmbH & Co. KG, Klagebach 38, Schalksmuhle, Нiмеччина | O67: Нiмеччина | P67: 9107000000 | Q67: 4011334020639
A68: 2873 | B68: Поворотно-нажимний диммер 'Soft' LED/КЛЛ 3-100Вт, решта ламп 20-500Вт | C68: B | D68: шт | E68: 3221.02 | F68: 3221.02 | G68: berker-розетки/вимикачі | H68: універсальні | K68: 1 | L68: 100 | M68: 0 | N68: Berker GmbH & Co. KG, Klagebach 38, Schalksmuhle, Нiмеччина | O68: Нiмеччина | P68: 8536508000 | Q68: 4011334218715
A69: 2885 | B69: Поворотно-нажимний диммер з 'Soft'-регулюванням для ЛН та ВВГЛ 100-1000 Вт | C69: C | D69: шт | E69: 7352.14 | F69: 7352.14 | G69: berker-розетки/вимикачі | H69: універсальні | J69: 1 | K69: 1 | L69: 100 | M69: 0 | N69: Berker GmbH & Co. KG, Klagebach 38, Schalksmuhle, Нiмеччина | O69: Нiмеччина | P69: 8536508000 | Q69: 4011334251859
A70: 2901 | B70: Універсальний нажимний диммер подвійного включення | C70: C | D70: шт | E70: 5601.55 | F70: 5601.55 | G70: berker-розетки/вимикачі | H70: універсальні | J70: 1 | K70: 1 | L70: 0 | M70: 0 | N70: Berker GmbH & Co. KG, Klagebach 38, Schalksmuhle, Нiмеччина | O70: Нiмеччина | P70: 8536508000 | Q70: 4011334295129
A71: 2909 | B71: Диммер поворотний, ЛН/ВВГЛ 20-200Вт, LED 3-40Вт, 230В | C71: B | D71: шт | E71: =ROUND(F71*(1-скидка),2) -> 1566.42 | F71: 1566.42 | G71: berker-розетки/вимикачі | H71: універсальні | K71: 1 | L71: 100 | M71: 1600 | N71: Berker GmbH & Co. KG, Klagebach 38, Schalksmuhle, Нiмеччина | O71: Нiмеччина | P71: 8536508000 | Q71: 4011334510055
A72: 2913 | B72: Компенсаційний модуль для LED-диммерів | C72: C | D72: шт | E72: 1213.75 | F72: 1213.75 | G72: berker-розетки/вимикачі | H72: універсальні | J72: 1 | K72: 1 | L72: 60 | M72: 0 | N72: Berker GmbH & Co. KG, Klagebach 38, Schalksmuhle, Нiмеччина | O72: Нiмеччина | P72: 8536508000 | Q72: 4011334510062
A73: 2973 | B73: Диммер поворотний, універсальний 20-210Вт, LED 3-60Вт, 230В | C73: B | D73: шт | E73: 3080.94 | F73: 3080.94 | G73: berker-розетки/вимикачі | H73: універсальні | K73: 1 | L73: 100 | M73: 1600 | N73: Berker GmbH & Co. KG, Klagebach 38, Schalksmuhle, Нiмеччина | O73: Нiмеччина | P73: 8536508000 | Q73: 4011334510079
A74: 2997 | B74: DALI-потенціометр з регулюванням білого, Soft-блокування | C74: C | D74: шт | E74: 2731.15 | F74: 2731.15 | G74: berker-розетки/вимикачі | H74: універсальні | J74: 1 | K74: 1 | L74: 100 | M74: 1600 | N74: Berker GmbH & Co. KG, Klagebach 38, Schalksmuhle, Нiмеччина | O74: Нiмеччина | P74: 8536508000 | Q74: 4011334510086
A75: 2998 | B75: DALI-потенціометр з регулюванням білого, з блоком живлення, Soft-блокування | C75: C | D75: шт | E75: 6161.87 | F75: 6161.87 | G75: berker-розетки/вимикачі | H75: універсальні | J75: 1 | K75: 1 | L75: 100 | M75: 1600 | N75: Berker GmbH & Co. KG, Klagebach 38, Schalksmuhle, Нiмеччина | O75: Нiмеччина | P75: 8536508000 | Q75: 4011334510093
A76: 3031 | B76: Вимикач 1-полюсний одноклавішний 10АХ/250В | C76: A | D76: шт | E76: 158.21 | F76: 158.21 | G76: berker-розетки/вимикачі | H76: універсальні | K76: 10 | L76: 200 | M76: 4000 | N76: Berker GmbH & Co. KG, Klagebach 38, Schalksmuhle, Нiмеччина | O76: Нiмеччина | P76: 8536508000 | Q76: 4011334023326
A77: 3032 | B77: Вимикач одноклавішний 2-полюсний 10АХ/250В | C77: C | D77: шт | E77: 448.26 | F77: 448.26 | G77: berker-розетки/вимикачі | H77: універсальні | J77: 10 | K77: 10 | L77: 200 | M77: 4000 | N77: Berker GmbH & Co. KG, Klagebach 38, Schalksmuhle, Нiмеччина | O77: Нiмеччина | P77: 8536508000 | Q77: 4011334023333
A78: 3035 | B78: Вимикач 2-клавішний 10АХ/250В | C78: A | D78: шт | E78: 198.17 | F78: 198.17 | G78: berker-розетки/вимикачі | H78: універсальні | K78: 10 | L78: 200 | M78: 4000 | N78: Berker GmbH & Co. KG, Klagebach 38, Schalksmuhle, Нiмеччина | O78: Нiмеччина | P78: 8536508000 | Q78: 4011334023357
A79: 3036 | B79: Вимикач/перемикач одноклавішний 10АХ/250В | C79: A | D79: шт | E79: 189.52 | F79: 189.52 | G79: berker-розетки/вимикачі | H79: універсальні | K79: 10 | L79: 200 | M79: 4000 | N79: Berker GmbH & Co. KG, Klagebach 38, Schalksmuhle, Нiмеччина | O79: Нiмеччина | P79: 8536508000 | Q79: 4011334023388
A80: 3037 | B80: Вимикач одноклавішний хрестовий 10АХ/250В | C80: A | D80: шт | E80: 308.59 | F80: 308.59 | G80: berker-розетки/вимикачі | H80: універсальні | K80: 10 | L80: 200 | M80: 4000 | N80: Berker GmbH & Co. KG, Klagebach 38, Schalksmuhle, Нiмеччина | O80: Нiмеччина | P80: 8536508000 | Q80: 4011334023395
A81: 3962 | B81: Вимикач шнуровий 2-полюсний 10АХ/250В | C81: C | D81: шт | E81: 560.32 | F81: 560.32 | G81: berker-розетки/вимикачі | H81: універсальні | J81: 1 | K81: 1 | L81: 0 | M81: 2800 | N81: Berker GmbH & Co. KG, Klagebach 38, Schalksmuhle, Нiмеччина | O81: Нiмеччина | P81: 8536508000 | Q81: 4011334025153
A82: 3966 | B82: Вимикач/перемикач шнуровий 10АХ/250В | C82: C | D82: шт | E82: 679.39 | F82: 679.39 | G82: berker-розетки/вимикачі | H82: універсальні | J82: 10 | K82: 10 | L82: 0 | M82: 0 | N82: Berker GmbH & Co. KG, Klagebach 38, Schalksmuhle, Нiмеччина | O82: Нiмеччина | P82: 8536508000 | Q82: 4011334025160
A83: 4468 | B83: Кабельний вивід Er, макс.діам.: 9мм | C83: C | D83: шт | E83: 291.28 | F83: 291.28 | G83: berker-розетки/вимикачі | H83: універсальні | J83: 10 | K83: 10 | L83: 0 | M83: 0 | N83: Berker GmbH & Co. KG, Klagebach 38, Schalksmuhle, Нiмеччина | O83: Нiмеччина | P83: 8538909900 | Q83: 4011334164852
A84: 4470 | B84: Кабельний вивід, макс.діам.: 9мм | C84: B | D84: шт | E84: 291.28 | F84: 291.28 | G84: berker-розетки/вимикачі | H84: універсальні | K84: 10 | L84: 200 | M84: 4000 | N84: Berker GmbH & Co. KG, Klagebach 38, Schalksmuhle, Нiмеччина | O84: Нiмеччина | P84: 8538909900 | Q84: 4011334029151
A85: 4538 | B85: Розетка UAE 8-полюсн., Кат.3 | C85: C | D85: шт | E85: 650.96 | F85: 650.96 | G85: berker-розетки/вимикачі | H85: універсальні | J85: 1 | K85: 1 | L85: 500 | M85: 10000 | N85: Berker GmbH & Co. KG, Klagebach 38, Schalksmuhle, Нiмеччина | O85: Нiмеччина | P85: 8536901000 | Q85: 4011334178644
A86: 4539 | B86: Розетка UAE 8/8-полюсн., Кат.3 | C86: C | D86: шт | E86: 716.88 | F86: 716.88 | G86: berker-розетки/вимикачі | H86: універсальні | J86: 10 | K86: 10 | L86: 500 | M86: 10000 | N86: Berker GmbH & Co. KG, Klagebach 38, Schalksmuhle, Нiмеччина | O86: Нiмеччина | P86: 8536901000 | Q86: 4011334178637
A87: 4562 | B87: Розетка UAE 2х8(4)-полюсн., Кат.3 | C87: C | D87: шт | E87: 716.88 | F87: 716.88 | G87: berker-розетки/вимикачі | H87: універсальні | J87: 1 | K87: 1 | L87: 0 | M87: 0 | N87: Berker GmbH & Co. KG, Klagebach 38, Schalksmuhle, Нiмеччина | O87: Нiмеччина | P87: 8536901000 | Q87: 4011334218807
A88: 4568 | B88: Розетка UAE 8(4)-полюсн., Кат.3 | C88: C | D88: шт | E88: 543.02 | F88: 543.02 | G88: berker-розетки/вимикачі | H88: універсальні | K88: 10 | L88: 500 | M88: 0 | N88: Berker GmbH & Co. KG, Klagebach 38, Schalksmuhle, Нiмеччина | O88: Нiмеччина | P88: 8536901000 | Q88: 4011334050636
A89: 4582 | B89: Модуль точки доступу WLAN, живлення 230В | C89: C | D89: шт | E89: 13863.8 | F89: 13863.8 | G89: berker-розетки/вимикачі | H89: універсальні | J89: 1 | K89: 1 | L89: 0 | M89: 0 | N89: Berker GmbH & Co. KG, Klagebach 38, Schalksmuhle, Нiмеччина | O89: Нiмеччина | P89: 8536901000 | Q89: 4011334437468
A90: 4583 | B90: Модуль точки доступу WLAN, живлення через Ethernet 48В | C90: C | D90: шт | E90: 16758.1 | F90: 16758.1 | G90: berker-розетки/вимикачі | H90: універсальні | J90: 1 | K90: 1 | L90: 0 | M90: 0 | N90: Berker GmbH & Co. KG, Klagebach 38, Schalksmuhle, Нiмеччина | O90: Нiмеччина | P90: 8536901000 | Q90: 4011334437475
A91: 4586 | B91: Розетка UAE 8-полюсн. екранована, Кат.6a | C91: B | D91: шт | E91: 957.08 | F91: 957.08 | G91: berker-розетки/вимикачі | H91: універсальні | K91: 10 | L91: 30 | M91: 240 | N91: Berker GmbH & Co. KG, Klagebach 38, Schalksmuhle, Нiмеччина | O91: Нiмеччина | P91: 8536901000 | Q91: 4011334256380
A92: 4587 | B92: Розетка UAE 8/8-полюсн. екранована, Кат.6a | C92: B | D92: шт | E92: 1150.3 | F92: 1150.3 | G92: berker-розетки/вимикачі | H92: універсальні | K92: 10 | L92: 120 | M92: 0 | N92: Berker GmbH & Co. KG, Klagebach 38, Schalksmuhle, Нiмеччина | O92: Нiмеччина | P92: 8536901000 | Q92: 4011334256397
A93: 4588 | B93: Розетка UAE 8/8-полюсн. екранована, Кат.6A iso | C93: C | D93: шт | E93: 1078.2 | F93: 1078.2 | G93: berker-розетки/вимикачі | H93: універсальні | J93: 1 | K93: 1 | L93: 0 | M93: 0 | N93: Berker GmbH & Co. KG, Klagebach 38, Schalksmuhle, Нiмеччина | O93: Нiмеччина | P93: 8536901000 | Q93: 4011334345534
A94: 4604 | B94: Гніздо що вбудовується для вирівнювання потенціалів | C94: C | D94: шт | E94: 1127.23 | F94: 1127.23 | G94: berker-розетки/вимикачі | H94: універсальні | J94: 1 | K94: 1 | L94: 0 | M94: 0 | N94: Berker GmbH & Co. KG, Klagebach 38, Schalksmuhle, Нiмеччина | O94: Швейцарія | P94: 8538909900 | Q94: 4011334029700
A95: 4605 | B95: Кутовий штекер для вирівнювання потенціалів | C95: C | D95: шт | E95: 882.5 | F95: 882.5 | G95: berker-розетки/вимикачі | H95: універсальні | J95: 1 | K95: 1 | L95: 0 | M95: 0 | N95: Berker GmbH & Co. KG, Klagebach 38, Schalksmuhle, Нiмеччина | O95: Швейцарія | P95: 8538909900 | Q95: 4011334029717
A96: 4755 | B96: Розетка з з/к, зах.контактів, пол.білизна, 16А/250В 1930/Glas | C96: C | D96: шт | E96: 685.98 | F96: 685.98 | G96: berker-розетки/вимикачі | H96: 1930+Glas | I96: пол.білий | J96: 10 | K96: 10 | L96: 160 | M96: 3200 | N96: Berker GmbH & Co. KG, Klagebach 38, Schalksmuhle, Нiмеччина | O96: Нiмеччина | P96: 8536699090 | Q96: 4011334171874
A97: 5031 | B97: Кнопка 1-клавішна 1НВ 10А/250В | C97: A | D97: шт | E97: 177.57 | F97: 177.57 | G97: berker-розетки/вимикачі | H97: універсальні | K97: 10 | L97: 200 | M97: 4000 | N97: Berker GmbH & Co. KG, Klagebach 38, Schalksmuhle, Нiмеччина | O97: Нiмеччина | P97: 8536508000 | Q97: 4011334030294
A98: 5035 | B98: Кнопка 2-клавішна 2НВ загальна вхідна клема, 10А/250В | C98: A | D98: шт | E98: 245.96 | F98: 245.96 | G98: berker-розетки/вимикачі | H98: універсальні | K98: 10 | L98: 200 | M98: 4000 | N98: Berker GmbH & Co. KG, Klagebach 38, Schalksmuhle, Нiмеччина | O98: Нiмеччина | P98: 8536508000 | Q98: 4011334030447
A99: 5036 | B99: Кнопка 1-клавішна перемикач 10А/250В | C99: C | D99: шт | E99: 266.15 | F99: 266.15 | G99: berker-розетки/вимикачі | H99: універсальні | J99: 10 | K99: 10 | L99: 200 | M99: 4000 | N99: Berker GmbH & Co. KG, Klagebach 38, Schalksmuhle, Нiмеччина | O99: Нiмеччина | P99: 8536508000 | Q99: 4011334030508
A100: 5101 | B100: Нажимна кнопка та світловий сигнал Е10 | C100: C | D100: шт | E100: 343.2 | F100: 343.2 | G100: berker-розетки/вимикачі | H100: універсальні | J100: 10 | K100: 10 | L100: 200 | M100: 4000 | N100: Berker GmbH & Co. KG, Klagebach 38, Schalksmuhle, Нiмеччина | O100: Нiмеччина | P100: 8536508000 | Q100: 4011334030751
A101: 5104 | B101: Нажимка кнопка та світл.сигнал Е10, пол.білизна, 2А/250В 1930/Glas | C101: C | D101: шт | E101: 1911.68 | F101: 1911.68 | G101: berker-розетки/вимикачі | H101: 1930+Glas | I101: пол.білий | J101: 1 | K101: 1 | L101: 0 | M101: 0 | N101: Berker GmbH & Co. KG, Klagebach 38, Schalksmuhle, Нiмеччина | O101: Нiмеччина | P101: 8536508000 | Q101: 4011334030805
A102: 100101 | B102: Рамка 1Х для наружного монтажу, чорна, 1930 | C102: C | D102: шт | E102: 700.4 | F102: 700.4 | G102: berker-розетки/вимикачі | H102: 1930-рамки | I102: чорний | J102: 10 | K102: 10 | L102: 0 | M102: 0 | N102: Berker GmbH & Co. KG, Klagebach 38, Schalksmuhle, Нiмеччина | O102: Нiмеччина | P102: 3925908000 | Q102: 4011334214885
A103: 100109 | B103: Рамка 1Х для наружного монтажу, пол.білизна, 1930 | C103: C | D103: шт | E103: 700.4 | F103: 700.4 | G103: berker-розетки/вимикачі | H103: 1930-рамки | I103: пол.білий | J103: 10 | K103: 10 | L103: 0 | M103: 0 | N103: Berker GmbH & Co. KG, Klagebach 38, Schalksmuhle, Нiмеччина | O103: Нiмеччина | P103: 3925908000 | Q103: 4011334214892
A104: 100920 | B104: Заглушка с центр.панеллю без цоколя, пол.білизна, 1930/Glas | C104: C | D104: шт | E104: 840.07 | F104: 840.07 | G104: berker-розетки/вимикачі | H104: 1930+Glas | I104: пол.білий | J104: 20 | K104: 20 | L104: 0 | M104: 0 | N104: Berker GmbH & Co. KG, Klagebach 38, Schalksmuhle, Нiмеччина | O104: Нiмеччина | P104: 3925908000 | Q104: 4011334214908
A105: 100921 | B105: Заглушка с центр.панеллю без цоколя, чорна, 1930/Glas | C105: C | D105: шт | E105: 840.07 | F105: 840.07 | G105: berker-розетки/вимикачі | H105: 1930+Glas | I105: чорний | J105: 20 | K105: 20 | L105: 0 | M105: 0 | N105: Berker GmbH & Co. KG, Klagebach 38, Schalksmuhle, Нiмеччина | O105: Нiмеччина | P105: 3925908000 | Q105: 4011334214915
A106: 102112 | B106: Основа для адаптерів з/у 1-кратна, Q.x | C106: C | D106: шт | E106: 163.98 | F106: 163.98 | G106: berker-розетки/вимикачі | H106: Q.x | I106: спец.вироби | J106: 10 | K106: 10 | L106: 0 | M106: 0 | N106: Berker GmbH & Co. KG, Klagebach 38, Schalksmuhle, Нiмеччина | O106: Нiмеччина | P106: 3925908000 | Q106: 4011334002642
A107: 102122 | B107: Основа для адаптерів з/у 2-кратна, Q.x | C107: C | D107: шт | E107: 284.69 | F107: 284.69 | G107: berker-розетки/вимикачі | H107: Q.x | I107: спец.вироби | J107: 10 | K107: 10 | L107: 0 | M107: 0 | N107: Berker GmbH & Co. KG, Klagebach 38, Schalksmuhle, Нiмеччина | O107: Нiмеччина | P107: 3925908000 | Q107: 4011334002659
A108: 102132 | B108: Основа для адаптерів з/у 3-кратна, Q.x | C108: C | D108: шт | E108: 376.16 | F108: 376.16 | G108: berker-розетки/вимикачі | H108: Q.x | I108: спец.вироби | J108: 10 | K108: 10 | L108: 0 | M108: 0 | N108: Berker GmbH & Co. KG, Klagebach 38, Schalksmuhle, Нiмеччина | O108: Нiмеччина | P108: 3925908000 | Q108: 4011334002666
A109: 103701 | B109: Панель для вводу кабеля, чорна, 1930 | R.classic | C109: C | D109: шт | E109: 291.7 | F109: 291.7 | G109: berker-розетки/вимикачі | H109: 1930 | I109: чорний | J109: 10 | K109: 10 | L109: 0 | M109: 0 | N109: Berker GmbH & Co. KG, Klagebach 38, Schalksmuhle, Нiмеччина | O109: Нiмеччина | P109: 3925908000 | Q109: 4011334003151
A110: 103920 | B110: Центр.панель для анетенної розетки 2 отвори, пол.білизна, 1930/Glas | C110: C | D110: шт | E110: 560.32 | F110: 560.32 | G110: berker-розетки/вимикачі | H110: 1930+Glas | I110: пол.білий | J110: 10 | K110: 10 | L110: 0 | M110: 0 | N110: Berker GmbH & Co. KG, Klagebach 38, Schalksmuhle, Нiмеччина | O110: Нiмеччина | P110: 3925908000 | Q110: 4011334214922
A111: 103921 | B111: Центр.панель для анетенної розетки 2 отвори, чорна, 1930/Glas | C111: C | D111: шт | E111: 560.32 | F111: 560.32 | G111: berker-розетки/вимикачі | H111: 1930+Glas | I111: чорний | J111: 10 | K111: 10 | L111: 0 | M111: 0 | N111: Berker GmbH & Co. KG, Klagebach 38, Schalksmuhle, Нiмеччина | O111: Нiмеччина | P111: 3925908000 | Q111: 4011334214939
A112: 104001 | B112: Накладка для розеток для гучномовців, USB-розеток, чорна, 1930/Glas | C112: C | D112: шт | E112: 560.32 | F112: 560.32 | G112: berker-розетки/вимикачі | H112: 1930+Glas | I112: чорний | J112: 10 | K112: 10 | L112: 0 | M112: 0 | N112: Berker GmbH & Co. KG, Klagebach 38, Schalksmuhle, Нiмеччина | O112: Нiмеччина | P112: 3925908000 | Q112: 4011334003212
A113: 106420 | B113: Центр.панель для анетенної розетки 3 отвори, пол.білизна, 1930/Glas | C113: C | D113: шт | E113: 560.32 | F113: 560.32 | G113: berker-розетки/вимикачі | H113: 1930+Glas | I113: пол.білий | J113: 10 | K113: 10 | L113: 0 | M113: 0 | N113: Berker GmbH & Co. KG, Klagebach 38, Schalksmuhle, Нiмеччина | O113: Нiмеччина | P113: 3925908000 | Q113: 4011334236245
A114: 106421 | B114: Центр.панель для анетенної розетки 3 отвори, чорна, 1930/Glas | C114: C | D114: шт | E114: 560.32 | F114: 560.32 | G114: berker-розетки/вимикачі | H114: 1930+Glas | I114: чорний | J114: 10 | K114: 10 | L114: 0 | M114: 0 | N114: Berker GmbH & Co. KG, Klagebach 38, Schalksmuhle, Нiмеччина | O114: Нiмеччина | P114: 3925908000 | Q114: 4011334236252
A115: 109009 | B115: Накладка скляна для поворотних вимикачів, пол.білизна, Glas | C115: C | D115: шт | E115: 1120.23 | F115: 1120.23 | G115: berker-розетки/вимикачі | H115: Glas | J115: 10 | K115: 10 | L115: 0 | M115: 0 | N115: Berker GmbH & Co. KG, Klagebach 38, Schalksmuhle, Нiмеччина | O115: Нiмеччина | P115: 7020008000 | Q115: 4011334440307
A116: 109109 | B116: Рамка 1Х скляна, пол.білизна, Glas | C116: C | D116: шт | E116: 1120.23 | F116: 1120.23 | G116: berker-розетки/вимикачі | H116: Glas | J116: 10 | K116: 10 | L116: 0 | M116: 0 | N116: Berker GmbH & Co. KG, Klagebach 38, Schalksmuhle, Нiмеччина | O116: Нiмеччина | P116: 7020008000 | Q116: 4011334440338
A117: 109200 | B117: Рамка 1Х скляна кінцева GLASSERIE | C117: C | D117: шт | E117: 1680.55 | F117: 1680.55 | G117: berker-розетки/вимикачі | H117: Glas | J117: 10 | K117: 10 | L117: 0 | M117: 0 | N117: Berker GmbH & Co. KG, Klagebach 38, Schalksmuhle, Нiмеччина | O117: Нiмеччина | P117: 7020008000 | Q117: 4011334387268
A118: 109219 | B118: Рамка 1Х скляна кінцева, пол.білизна, Glas | C118: C | D118: шт | E118: 1680.55 | F118: 1680.55 | G118: berker-розетки/вимикачі | H118: Glas | J118: 10 | K118: 10 | L118: 0 | M118: 0 | N118: Berker GmbH & Co. KG, Klagebach 38, Schalksmuhle, Нiмеччина | O118: Нiмеччина | P118: 7020008000 | Q118: 4011334440345
A119: 109300 | B119: Рамка 1Х скляна середня GLASSERIE | C119: C | D119: шт | E119: 1680.55 | F119: 1680.55 | G119: berker-розетки/вимикачі | H119: Glas | J119: 10 | K119: 10 | L119: 0 | M119: 0 | N119: Berker GmbH & Co. KG, Klagebach 38, Schalksmuhle, Нiмеччина | O119: Нiмеччина | P119: 7020008000 | Q119: 4011334387305
A120: 109309 | B120: Рамка 1Х скляна середня, пол.білизна, Glas | C120: C | D120: шт | E120: 1680.55 | F120: 1680.55 | G120: berker-розетки/вимикачі | H120: Glas | J120: 10 | K120: 10 | L120: 0 | M120: 0 | N120: Berker GmbH & Co. KG, Klagebach 38, Schalksmuhle, Нiмеччина | O120: Нiмеччина | P120: 7020008000 | Q120: 4011334440352
A121: 109409 | B121: Накладка скляна кінцева для поворотних вимикачів, пол.білизна, Glas | C121: C | D121: шт | E121: 1680.55 | F121: 1680.55 | G121: berker-розетки/вимикачі | H121: Glas | J121: 10 | K121: 10 | L121: 0 | M121: 0 | N121: Berker GmbH & Co. KG, Klagebach 38, Schalksmuhle, Нiмеччина | O121: Нiмеччина | P121: 7020008000 | Q121: 4011334440314
A122: 109509 | B122: Накладка скляна середня для поворотних вимикачів, пол.білизна, Glas | C122: C | D122: шт | E122: 1680.55 | F122: 1680.55 | G122: berker-розетки/вимикачі | H122: Glas | J122: 10 | K122: 10 | L122: 0 | M122: 0 | N122: Berker GmbH & Co. KG, Klagebach 38, Schalksmuhle, Нiмеччина | O122: Нiмеччина | P122: 7020008000 | Q122: 4011334440321
A123: 110209 | B123: Рамка 2Х скляна, пол.білизна, Glas | C123: C | D123: шт | E123: 2800.78 | F123: 2800.78 | G123: berker-розетки/вимикачі | H123: Glas | J123: 2 | K123: 2 | L123: 0 | M123: 0 | N123: Berker GmbH & Co. KG, Klagebach 38, Schalksmuhle, Нiмеччина | O123: Нiмеччина | P123: 7020008000 | Q123: 4011334440369
A124: 122501 | B124: Заглушка для кнопки та світл.сигналу Е10, чорна, 1930/Glas | C124: C | D124: шт | E124: 588.34 | F124: 588.34 | G124: berker-розетки/вимикачі | H124: 1930+Glas | I124: чорний | J124: 10 | K124: 10 | L124: 0 | M124: 0 | N124: Berker GmbH & Co. KG, Klagebach 38, Schalksmuhle, Нiмеччина | O124: Нiмеччина | P124: 3925908000 | Q124: 4011334009528
A125: 122902 | B125: Заглушка для кнопки та світл.сигналу Е10, без кольору прозора, 1930/Glas | C125: C | D125: шт | E125: 685.98 | F125: 685.98 | G125: berker-розетки/вимикачі | H125: 1930+Glas | I125: універсальні | J125: 10 | K125: 10 | L125: 0 | M125: 0 | N125: Berker GmbH & Co. KG, Klagebach 38, Schalksmuhle, Нiмеччина | O125: Нiмеччина | P125: 3925908000 | Q125: 4011334212881
A126: 127902 | B126: Заглушка для нажимних кнопок та світлових сигналів Е10, без кольору | C126: C | D126: шт | E126: 186.22 | F126: 186.22 | G126: berker-розетки/вимикачі | H126: універсальні | J126: 10 | K126: 10 | L126: 0 | M126: 0 | N126: Berker GmbH & Co. KG, Klagebach 38, Schalksmuhle, Нiмеччина | O126: Нiмеччина | P126: 3925908000 | Q126: 4011334212874
A127: 127903 | B127: Заглушка для нажимних кнопок та світлових сигналів Е10, зелена | C127: C | D127: шт | E127: 186.22 | F127: 186.22 | G127: berker-розетки/вимикачі | H127: універсальні | J127: 10 | K127: 10 | L127: 0 | M127: 0 | N127: Berker GmbH & Co. KG, Klagebach 38, Schalksmuhle, Нiмеччина | O127: Нiмеччина | P127: 3925908000 | Q127: 4011334165446
A128: 128903 | B128: Захисна пластина для накладки інформаційного світлового сигналу, зелена | C128: C | D128: шт | E128: 171.8 | F128: 171.8 | G128: berker-розетки/вимикачі | H128: універсальні | J128: 10 | K128: 10 | L128: 0 | M128: 0 | N128: Berker GmbH & Co. KG, Klagebach 38, Schalksmuhle, Нiмеччина | O128: Нiмеччина | P128: 3925908000 | Q128: 4011334210962
A129: 133111 | B129: Основа самозатухаюча для рамки 1-кр. для наружного монтажу, чорна, 1930 | C129: C | D129: шт | E129: 440.84 | F129: 440.84 | G129: berker-розетки/вимикачі | H129: 1930-рамки | I129: чорний | J129: 10 | K129: 10 | L129: 0 | M129: 0 | N129: Berker GmbH & Co. KG, Klagebach 38, Schalksmuhle, Нiмеччина | O129: Нiмеччина | P129: 3925908000 | Q129: 4011334291817
A130: 133119 | B130: Основа самозатухаюча для рамки 1-кр. для наружного монтажу, пол.білизна, 1930 | C130: C | D130: шт | E130: 440.84 | F130: 440.84 | G130: berker-розетки/вимикачі | H130: 1930-рамки | I130: пол.білий | J130: 10 | K130: 10 | L130: 0 | M130: 0 | N130: Berker GmbH & Co. KG, Klagebach 38, Schalksmuhle, Нiмеччина | O130: Нiмеччина | P130: 3925908000 | Q130: 4011334291824
A131: 138101 | B131: Рамка 1Х чорна, 1930 | C131: B | D131: шт | E131: 294.17 | F131: 294.17 | G131: berker-розетки/вимикачі | H131: 1930-рамки | I131: чорний | K131: 10 | L131: 0 | M131: 0 | N131: Berker GmbH & Co. KG, Klagebach 38, Schalksmuhle, Нiмеччина | O131: Нiмеччина | P131: 3925908000 | Q131: 4011334214816
A132: 138109 | B132: Рамка 1Х пол.білизна, 1930 | C132: B | D132: шт | E132: 294.17 | F132: 294.17 | G132: berker-розетки/вимикачі | H132: 1930-рамки | I132: пол.білий | K132: 10 | L132: 0 | M132: 0 | N132: Berker GmbH & Co. KG, Klagebach 38, Schalksmuhle, Нiмеччина | O132: Нiмеччина | P132: 3925908000 | Q132: 4011334214823
A133: 138121 | B133: Рамка 2Х чорна, 1930 | C133: C | D133: шт | E133: 700.4 | F133: 700.4 | G133: berker-розетки/вимикачі | H133: 1930-рамки | I133: чорний | J133: 2 | K133: 2 | L133: 0 | M133: 0 | N133: Berker GmbH & Co. KG, Klagebach 38, Schalksmuhle, Нiмеччина | O133: Нiмеччина | P133: 3925908000 | Q133: 4011334219095
A134: 138129 | B134: Рамка 2Х пол.білизна, 1930 | C134: C | D134: шт | E134: 700.4 | F134: 700.4 | G134: berker-розетки/вимикачі | H134: 1930-рамки | I134: пол.білий | J134: 2 | K134: 2 | L134: 0 | M134: 0 | N134: Berker GmbH & Co. KG, Klagebach 38, Schalksmuhle, Нiмеччина | O134: Нiмеччина | P134: 3925908000 | Q134: 4011334219101
A135: 138131 | B135: Рамка 3Х чорна, 1930 | C135: C | D135: шт | E135: =ROUND(F135*(1-скидка),2) -> 1120.23 | F135: 1120.23 | G135: berker-розетки/вимикачі | H135: 1930-рамки | I135: чорний | J135: 2 | K135: 2 | L135: 0 | M135: 0 | N135: Berker GmbH & Co. KG, Klagebach 38, Schalksmuhle, Нiмеччина | O135: Нiмеччина | P135: 3925908000 | Q135: 4011334219118
A136: 138139 | B136: Рамка 3Х пол.білизна, 1930 | C136: C | D136: шт | E136: 1120.23 | F136: 1120.23 | G136: berker-розетки/вимикачі | H136: 1930-рамки | I136: пол.білий | J136: 2 | K136: 2 | L136: 0 | M136: 0 | N136: Berker GmbH & Co. KG, Klagebach 38, Schalksmuhle, Нiмеччина | O136: Нiмеччина | P136: 3925908000 | Q136: 4011334219125
A137: 138141 | B137: Рамка 1Х кінцева, чорна, 1930 | C137: B | D137: шт | E137: 377.8 | F137: 377.8 | G137: berker-розетки/вимикачі | H137: 1930-рамки | I137: чорний | K137: 10 | L137: 0 | M137: 0 | N137: Berker GmbH & Co. KG, Klagebach 38, Schalksmuhle, Нiмеччина | O137: Нiмеччина | P137: 3925908000 | Q137: 4011334249146
A138: 138149 | B138: Рамка 1Х кінцева, пол.білизна, 1930 | C138: B | D138: шт | E138: 377.8 | F138: 377.8 | G138: berker-розетки/вимикачі | H138: 1930-рамки | I138: пол.білий | K138: 10 | L138: 0 | M138: 0 | N138: Berker GmbH & Co. KG, Klagebach 38, Schalksmuhle, Нiмеччина | O138: Нiмеччина | P138: 3925908000 | Q138: 4011334249153
A139: 138151 | B139: Рамка 1Х середня, чорна, 1930 | C139: B | D139: шт | E139: 462.26 | F139: 462.26 | G139: berker-розетки/вимикачі | H139: 1930-рамки | I139: чорний | K139: 10 | L139: 0 | M139: 0 | N139: Berker GmbH & Co. KG, Klagebach 38, Schalksmuhle, Нiмеччина | O139: Нiмеччина | P139: 3925908000 | Q139: 4011334249160
A140: 138159 | B140: Рамка 1Х середня, пол.білизна, 1930 | C140: B | D140: шт | E140: 462.26 | F140: 462.26 | G140: berker-розетки/вимикачі | H140: 1930-рамки | I140: пол.білий | K140: 10 | L140: 0 | M140: 0 | N140: Berker GmbH & Co. KG, Klagebach 38, Schalksmuhle, Нiмеччина | O140: Нiмеччина | P140: 3925908000 | Q140: 4011334249177
A141: 138165 | B141: Рамка 1Х керамічна чорна 1930/PORZELLAN | C141: C | D141: шт | E141: 1330.76 | F141: 1330.76 | G141: berker-розетки/вимикачі | H141: 1930 | I141: фарфор Rosenthal | J141: 1 | K141: 1 | L141: 0 | M141: 0 | N141: Berker GmbH & Co. KG, Klagebach 38, Schalksmuhle, Нiмеччина | O141: Нiмеччина | P141: 3925908000 | Q141: 4011334305255
A142: 138169 | B142: Рамка 1Х керамічна пол.білизна 1930/PORZELLAN | C142: C | D142: шт | E142: 1330.76 | F142: 1330.76 | G142: berker-розетки/вимикачі | H142: 1930 | I142: фарфор Rosenthal | J142: 1 | K142: 1 | L142: 0 | M142: 0 | N142: Berker GmbH & Co. KG, Klagebach 38, Schalksmuhle, Нiмеччина | O142: Нiмеччина | P142: 3925908000 | Q142: 4011334305262
A143: 138201 | B143: Рамка 1Х чорна з внутр.отвором діам.58мм, 1930 | C143: C | D143: шт | E143: 294.17 | F143: 294.17 | G143: berker-розетки/вимикачі | H143: 1930-рамки | I143: чорний | J143: 10 | K143: 10 | L143: 0 | M143: 0 | N143: Berker GmbH & Co. KG, Klagebach 38, Schalksmuhle, Нiмеччина | O143: Нiмеччина | P143: 3925908000 | Q143: 4011334428602
A144: 138209 | B144: Рамка 1Х пол.білизна з внутр.отвором діам.58мм, 1930 | C144: C | D144: шт | E144: 294.17 | F144: 294.17 | G144: berker-розетки/вимикачі | H144: 1930-рамки | I144: пол.білий | J144: 10 | K144: 10 | L144: 0 | M144: 0 | N144: Berker GmbH & Co. KG, Klagebach 38, Schalksmuhle, Нiмеччина | O144: Нiмеччина | P144: 3925908000 | Q144: 4011334428596
A145: 140302 | B145: Накладка розекти вирівнювання потенціалів, біла S.1 | C145: C | D145: шт | E145: 196.11 | F145: 196.11 | G145: berker-розетки/вимикачі | H145: S.1 | I145: білий | J145: 10 | K145: 10 | L145: 0 | M145: 0 | N145: Berker GmbH & Co. KG, Klagebach 38, Schalksmuhle, Нiмеччина | O145: Нiмеччина | P145: 3925908000 | Q145: 4011334228035
A146: 140309 | B146: Накладка розекти вирівнювання потенціалів, пол.білизна S.1 | C146: C | D146: шт | E146: 196.11 | F146: 196.11 | G146: berker-розетки/вимикачі | H146: S.1 | I146: пол.білий | J146: 10 | K146: 10 | L146: 0 | M146: 0 | N146: Berker GmbH & Co. KG, Klagebach 38, Schalksmuhle, Нiмеччина | O146: Нiмеччина | P146: 3925908000 | Q146: 4011334228042
A147: 140701 | B147: Центр.панель для розетки UAE, чорна, 1930/Glas | C147: C | D147: шт | E147: 560.32 | F147: 560.32 | G147: berker-розетки/вимикачі | H147: 1930+Glas | I147: чорний | J147: 10 | K147: 10 | L147: 0 | M147: 0 | N147: Berker GmbH & Co. KG, Klagebach 38, Schalksmuhle, Нiмеччина | O147: Нiмеччина | P147: 3925908000 | Q147: 4011334237235
A148: 140901 | B148: Накладка для розетки UAE/E-DAT, чорна, 1930/Glas | C148: C | D148: шт | E148: 560.32 | F148: 560.32 | G148: berker-розетки/вимикачі | H148: 1930+Glas | I148: чорний | J148: 10 | K148: 10 | L148: 0 | M148: 0 | N148: Berker GmbH & Co. KG, Klagebach 38, Schalksmuhle, Нiмеччина | O148: Нiмеччина | P148: 3925908000 | Q148: 4011334237259
A149: 141202 | B149: Накладка для XLR-циліндричних елктроз'єнувачів D-серії, біла S.1 | C149: C | D149: шт | E149: 292.52 | F149: 292.52 | G149: berker-розетки/вимикачі | H149: S.1 | I149: білий | J149: 10 | K149: 10 | L149: 0 | M149: 0 | N149: Berker GmbH & Co. KG, Klagebach 38, Schalksmuhle, Нiмеччина | O149: Нiмеччина | P149: 3925908000 | Q149: 4011334226925
A150: 141209 | B150: Накладка для XLR-циліндричних елктроз'єнувачів D-серії, пол.білизна S.1 | C150: C | D150: шт | E150: 292.52 | F150: 292.52 | G150: berker-розетки/вимикачі | H150: S.1 | I150: пол.білий | J150: 10 | K150: 10 | L150: 0 | M150: 0 | N150: Berker GmbH & Co. KG, Klagebach 38, Schalksmuhle, Нiмеччина | O150: Нiмеччина | P150: 3925908000 | Q150: 4011334226932
A151: 143102 | B151: Накладка для сигнальних та контрольних приладів, біла S.1 | C151: C | D151: шт | E151: 289.64 | F151: 289.64 | G151: berker-розетки/вимикачі | H151: S.1 | I151: білий | J151: 10 | K151: 10 | L151: 0 | M151: 0 | N151: Berker GmbH & Co. KG, Klagebach 38, Schalksmuhle, Нiмеччина | O151: Нiмеччина | P151: 3925908000 | Q151: 4011334272274
A152: 143109 | B152: Накладка для сигнальних та контрольних приладів, пол.білизна S.1 | C152: C | D152: шт | E152: 289.64 | F152: 289.64 | G152: berker-розетки/вимикачі | H152: S.1 | I152: пол.білий | J152: 10 | K152: 10 | L152: 0 | M152: 0 | N152: Berker GmbH & Co. KG, Klagebach 38, Schalksmuhle, Нiмеччина | O152: Нiмеччина | P152: 3925908000 | Q152: 4011334272281
A153: 143202 | B153: Накладка для сигнальних та контрольних приладів, Ш 22.5мм, біла S.1 | C153: C | D153: шт | E153: 289.64 | F153: 289.64 | G153: berker-розетки/вимикачі | H153: S.1 | I153: білий | J153: 10 | K153: 10 | L153: 0 | M153: 0 | N153: Berker GmbH & Co. KG, Klagebach 38, Schalksmuhle, Нiмеччина | O153: Нiмеччина | P153: 3925908000 | Q153: 4011334272298
A154: 143209 | B154: Накладка для сигнальних та контрольних приладів, Ш 22.5мм, пол.білизна S.1 | C154: C | D154: шт | E154: 289.64 | F154: 289.64 | G154: berker-розетки/вимикачі | H154: S.1 | I154: пол.білий | J154: 10 | K154: 10 | L154: 0 | M154: 0 | N154: Berker GmbH & Co. KG, Klagebach 38, Schalksmuhle, Нiмеччина | O154: Нiмеччина | P154: 3925908000 | Q154: 4011334272311
A155: 146102 | B155: Накладка для подвійного модуля RDM, біла S.1 | C155: C | D155: шт | E155: 730.48 | F155: 730.48 | G155: berker-розетки/вимикачі | H155: S.1 | I155: білий | J155: 10 | K155: 10 | L155: 0 | M155: 0 | N155: Berker GmbH & Co. KG, Klagebach 38, Schalksmuhle, Нiмеччина | O155: Нiмеччина | P155: 3925908000 | Q155: 4011334169796
A156: 146109 | B156: Накладка для подвійного модуля RDM, пол.білизна S.1 | C156: C | D156: шт | E156: 653.43 | F156: 653.43 | G156: berker-розетки/вимикачі | H156: S.1 | I156: пол.білий | J156: 10 | K156: 10 | L156: 0 | M156: 0 | N156: Berker GmbH & Co. KG, Klagebach 38, Schalksmuhle, Нiмеччина | O156: Нiмеччина | P156: 3925908000 | Q156: 4011334169819
A157: 146302 | B157: Накладка для модулів AMP, біла S.1 | C157: C | D157: шт | E157: 490.28 | F157: 490.28 | G157: berker-розетки/вимикачі | H157: S.1 | I157: білий | J157: 10 | K157: 10 | L157: 0 | M157: 0 | N157: Berker GmbH & Co. KG, Klagebach 38, Schalksmuhle, Нiмеччина | O157: Нiмеччина | P157: 3925908000 | Q157: 4011334169734
A158: 146304 | B158: Накладка для модулів AMP, сталевий лак, K.5/ARSYS | C158: C | D158: шт | E158: 965.73 | F158: 965.73 | G158: berker-розетки/вимикачі | H158: K.5 | I158: нерж.сталь | J158: 1 | K158: 1 | L158: 0 | M158: 2800 | N158: Berker GmbH & Co. KG, Klagebach 38, Schalksmuhle, Нiмеччина | O158: Нiмеччина | P158: 3925908000 | Q158: 4011334179986
A159: 146309 | B159: Накладка для модулів AMP, пол.білизна S.1 | C159: C | D159: шт | E159: 490.28 | F159: 490.28 | G159: berker-розетки/вимикачі | H159: S.1 | I159: пол.білий | J159: 10 | K159: 10 | L159: 0 | M159: 0 | N159: Berker GmbH & Co. KG, Klagebach 38, Schalksmuhle, Нiмеччина | O159: Нiмеччина | P159: 3925908000 | Q159: 4011334169017
A160: 146402 | B160: Накладка для модулів Modular Jacks 'Krone', біла S.1 | C160: C | D160: шт | E160: 529.42 | F160: 529.42 | G160: berker-розетки/вимикачі | H160: S.1 | I160: білий | J160: 10 | K160: 10 | L160: 0 | M160: 0 | N160: Berker GmbH & Co. KG, Klagebach 38, Schalksmuhle, Нiмеччина | O160: Нiмеччина | P160: 3925908000 | Q160: 4011334202431
A161: 146409 | B161: Накладка для модулів Modular Jacks 'Krone', пол.білизна S.1 | C161: C | D161: шт | E161: 529.42 | F161: 529.42 | G161: berker-розетки/вимикачі | H161: S.1 | I161: пол.білий | J161: 10 | K161: 10 | L161: 0 | M161: 0 | N161: Berker GmbH & Co. KG, Klagebach 38, Schalksmuhle, Нiмеччина | O161: Нiмеччина | P161: 3925908000 | Q161: 4011334202462
A162: 147202 | B162: Накладка для 1 чи 2 єдиних модулів RDM, біла S.1 | C162: C | D162: шт | E162: 637.36 | F162: 637.36 | G162: berker-розетки/вимикачі | H162: S.1 | I162: білий | J162: 10 | K162: 10 | L162: 0 | M162: 0 | N162: Berker GmbH & Co. KG, Klagebach 38, Schalksmuhle, Нiмеччина | O162: Нiмеччина | P162: 3925908000 | Q162: 4011334226741
A163: 147209 | B163: Накладка для 1 чи 2 єдиних модулів RDM, пол.білизна S.1 | C163: C | D163: шт | E163: 637.36 | F163: 637.36 | G163: berker-розетки/вимикачі | H163: S.1 | I163: пол.білий | J163: 10 | K163: 10 | L163: 0 | M163: 0 | N163: Berker GmbH & Co. KG, Klagebach 38, Schalksmuhle, Нiмеччина | O163: Нiмеччина | P163: 3925908000 | Q163: 4011334226758
A164: 148304 | B164: Накладка для ТВ-розетки 4 отвори, сталевий лак, K.5/ARSYS | C164: C | D164: шт | E164: 392.22 | F164: 392.22 | G164: berker-розетки/вимикачі | H164: K.5 | I164: нерж.сталь | J164: 1 | K164: 1 | L164: 0 | M164: 0 | N164: Berker GmbH & Co. KG, Klagebach 38, Schalksmuhle, Нiмеччина | O164: Нiмеччина | P164: 8538909900 | Q164: 4011334193098
A165: 148404 | B165: Накладка для ТВ-розетки 4 отвори, сталевий лак, K.5/ARSYS | C165: C | D165: шт | E165: 392.22 | F165: 392.22 | G165: berker-розетки/вимикачі | H165: K.5 | I165: нерж.сталь | J165: 1 | K165: 1 | L165: 0 | M165: 0 | N165: Berker GmbH & Co. KG, Klagebach 38, Schalksmuhle, Нiмеччина | O165: Нiмеччина | P165: 8538909900 | Q165: 4011334204862
A166: 160002 | B166: Елемент підсвічування 230В/0.9мА | C166: B | D166: шт | E166: 235.25 | F166: 235.25 | G166: berker-розетки/вимикачі | H166: універсальні | K166: 10 | L166: 0 | M166: 0 | N166: Berker GmbH & Co. KG, Klagebach 38, Schalksmuhle, Нiмеччина | O166: Нiмеччина | P166: 8539398000 | Q166: 4011334219286
A167: 160510 | B167: Елемент підсвічування 230В/1мА | C167: C | D167: шт | E167: 140.08 | F167: 140.08 | G167: berker-розетки/вимикачі | H167: універсальні | J167: 1 | K167: 1 | L167: 0 | M167: 38400 | N167: Berker GmbH & Co. KG, Klagebach 38, Schalksmuhle, Нiмеччина | O167: Нiмеччина | P167: 8539398000 | Q167: 4011334303916
A168: 161003 | B168: Елемент підсвічування Е14 для світл.сигналу з плоскою кришкою, 3Вт, 230В | C168: C | D168: шт | E168: 348.55 | F168: 348.55 | G168: berker-розетки/вимикачі | H168: універсальні | J168: 100 | K168: 100 | L168: 0 | M168: 0 | N168: Berker GmbH & Co. KG, Klagebach 38, Schalksmuhle, Нiмеччина | O168: Нiмеччина | P168: 8539398000 | Q168: 4011334195498
A169: 161013 | B169: Елемент підсвічування Е14 для світл.сигналу з високою кришкою, 3Вт, 230В | C169: C | D169: шт | E169: 348.55 | F169: 348.55 | G169: berker-розетки/вимикачі | H169: універсальні | J169: 100 | K169: 100 | L169: 0 | M169: 0 | N169: Berker GmbH & Co. KG, Klagebach 38, Schalksmuhle, Нiмеччина | O169: Нiмеччина | P169: 8539398000 | Q169: 4011334195504
A170: 164701 | B170: Центр.панель вимикача з ручкою. Пластик. Чорна. 1930/Glas | C170: B | D170: шт | E170: 574.33 | F170: 574.33 | G170: berker-розетки/вимикачі | H170: 1930+Glas | I170: чорний | K170: 1 | L170: 0 | M170: 0 | N170: Berker GmbH & Co. KG, Klagebach 38, Schalksmuhle, Нiмеччина | O170: Нiмеччина | P170: 3925908000 | Q170: 4011334321422
A171: 167504 | B171: Елемент підсвічування, 230В/0.4мА | C171: C | D171: шт | E171: 159.44 | F171: 159.44 | G171: berker-розетки/вимикачі | H171: універсальні | J171: 10 | K171: 10 | L171: 0 | M171: 38400 | N171: Berker GmbH & Co. KG, Klagebach 38, Schalksmuhle, Нiмеччина | O171: Нiмеччина | P171: 8539398000 | Q171: 4011334282747
A172: 167601 | B172: Елемент підсвічування, 24В/35мА | C172: C | D172: шт | E172: 168.1 | F172: 168.1 | G172: berker-розетки/вимикачі | H172: універсальні | J172: 10 | K172: 10 | L172: 0 | M172: 38400 | N172: Berker GmbH & Co. KG, Klagebach 38, Schalksmuhle, Нiмеччина | O172: Нiмеччина | P172: 8539398000 | Q172: 4011334293323
A173: 167602 | B173: Елемент підсвічування, 12В/65мА | C173: C | D173: шт | E173: 168.1 | F173: 168.1 | G173: berker-розетки/вимикачі | H173: універсальні | J173: 10 | K173: 10 | L173: 0 | M173: 38400 | N173: Berker GmbH & Co. KG, Klagebach 38, Schalksmuhle, Нiмеччина | O173: Нiмеччина | P173: 8539398000 | Q173: 4011334293330
A174: 167603 | B174: Елемент підсвічування, 48В/25мА | C174: C | D174: шт | E174: 252.14 | F174: 252.14 | G174: berker-розетки/вимикачі | H174: універсальні | J174: 10 | K174: 10 | L174: 0 | M174: 38400 | N174: Berker GmbH & Co. KG, Klagebach 38, Schalksmuhle, Нiмеччина | O174: Нiмеччина | P174: 8539398000 | Q174: 4011334294757
A175: 167801 | B175: Елемент підсвічування світлодіодний Е10, 0.4мА/230В | C175: C | D175: шт | E175: 386.04 | F175: 386.04 | G175: berker-розетки/вимикачі | H175: універсальні | J175: 10 | K175: 10 | L175: 0 | M175: 0 | N175: Berker GmbH & Co. KG, Klagebach 38, Schalksmuhle, Нiмеччина | O175: Нiмеччина | P175: 8539398000 | Q175: 4011334293767
A176: 167802 | B176: Елемент підсвічування світлодіодний Е10, 0.4мА/230В | C176: C | D176: шт | E176: 386.04 | F176: 386.04 | G176: berker-розетки/вимикачі | H176: універсальні | J176: 10 | K176: 10 | L176: 0 | M176: 0 | N176: Berker GmbH & Co. KG, Klagebach 38, Schalksmuhle, Нiмеччина | O176: Нiмеччина | P176: 8539398000 | Q176: 4011334293774
A177: 167803 | B177: Елемент підсвічування світлодіодний Е10, 0.4мА/230В | C177: C | D177: шт | E177: 841.72 | F177: 841.72 | G177: berker-розетки/вимикачі | H177: універсальні | J177: 10 | K177: 10 | L177: 0 | M177: 0 | N177: Berker GmbH & Co. KG, Klagebach 38, Schalksmuhle, Нiмеччина | O177: Нiмеччина | P177: 8539398000 | Q177: 4011334293781
A178: 167804 | B178: Елемент підсвічування світлодіодний Е10, 0.4мА/230В | C178: C | D178: шт | E178: 554.14 | F178: 554.14 | G178: berker-розетки/вимикачі | H178: універсальні | J178: 10 | K178: 10 | L178: 0 | M178: 0 | N178: Berker GmbH & Co. KG, Klagebach 38, Schalksmuhle, Нiмеччина | O178: Нiмеччина | P178: 8539398000 | Q178: 4011334293798
A179: 167901 | B179: Елемент підсвічування світлодіодний Е14, 4.2мА/230В | C179: C | D179: шт | E179: 593.28 | F179: 593.28 | G179: berker-розетки/вимикачі | H179: універсальні | J179: 10 | K179: 10 | L179: 0 | M179: 0 | N179: Berker GmbH & Co. KG, Klagebach 38, Schalksmuhle, Нiмеччина | O179: Нiмеччина | P179: 8539398000 | Q179: 4011334293811
A180: 167902 | B180: Елемент підсвічування світлодіодний Е14, 4.2мА/230В | C180: C | D180: шт | E180: 593.28 | F180: 593.28 | G180: berker-розетки/вимикачі | H180: універсальні | J180: 10 | K180: 10 | L180: 0 | M180: 0 | N180: Berker GmbH & Co. KG, Klagebach 38, Schalksmuhle, Нiмеччина | O180: Нiмеччина | P180: 8539398000 | Q180: 4011334293828
A181: 167903 | B181: Елемент підсвічування світлодіодний Е14, 4.2мА/230В | C181: C | D181: шт | E181: 789.39 | F181: 789.39 | G181: berker-розетки/вимикачі | H181: універсальні | J181: 10 | K181: 10 | L181: 0 | M181: 0 | N181: Berker GmbH & Co. KG, Klagebach 38, Schalksmuhle, Нiмеччина | O181: Нiмеччина | P181: 8539398000 | Q181: 4011334293835
A182: 167904 | B182: Елемент підсвічування світлодіодний Е14, 4.2мА/230В | C182: C | D182: шт | E182: 950.48 | F182: 950.48 | G182: berker-розетки/вимикачі | H182: універсальні | J182: 10 | K182: 10 | L182: 0 | M182: 0 | N182: Berker GmbH & Co. KG, Klagebach 38, Schalksmuhle, Нiмеччина | O182: Нiмеччина | P182: 8539398000 | Q182: 4011334293842
A183: 168000 | B183: LED-модуль з N-контактом для вимикачів 1930/Glas/R.classic, 230В | C183: C | D183: шт | E183: 1349.3 | F183: 1349.3 | G183: berker-розетки/вимикачі | H183: 1930+Glas | I183: універсальні | J183: 1 | K183: 1 | L183: 0 | M183: 0 | N183: Berker GmbH & Co. KG, Klagebach 38, Schalksmuhle, Нiмеччина | O183: Нiмеччина | P183: 8541401000 | Q183: 4011334490906
A184: 168001 | B184: LED-модуль для вимикачів 1930/Glas/R.classic, 230В | C184: C | D184: шт | E184: 1349.3 | F184: 1349.3 | G184: berker-розетки/вимикачі | H184: 1930+Glas | I184: універсальні | J184: 1 | K184: 1 | L184: 0 | M184: 0 | N184: Berker GmbH & Co. KG, Klagebach 38, Schalksmuhle, Нiмеччина | O184: Нiмеччина | P184: 8541401000 | Q184: 4011334499541
A185: 168050 | B185: LED-модуль освітлення по контуру для 1Х рамки Q.7 | C185: C | D185: шт | E185: 2100.79 | F185: 2100.79 | G185: berker-розетки/вимикачі | H185: Q.7-рамки | J185: 1 | K185: 1 | L185: 0 | M185: 0 | N185: Berker GmbH & Co. KG, Klagebach 38, Schalksmuhle, Нiмеччина | O185: Нiмеччина | P185: 8541401000 | Q185: 4011334502302
A186: 168055 | B186: LED-модуль освітлення вниз для 1Х рамки Q.7 | C186: C | D186: шт | E186: 1820.63 | F186: 1820.63 | G186: berker-розетки/вимикачі | H186: Q.7-рамки | J186: 1 | K186: 1 | L186: 0 | M186: 0 | N186: Berker GmbH & Co. KG, Klagebach 38, Schalksmuhle, Нiмеччина | O186: Нiмеччина | P186: 8541401000 | Q186: 4011334502319
A187: 168601 | B187: Елемент підсвічування зі світлодіодами 230В/0.4мА, для вимикачів/кнопок | C187: C | D187: шт | E187: 210.12 | F187: 210.12 | G187: berker-розетки/вимикачі | H187: універсальні | J187: 10 | K187: 10 | L187: 0 | M187: 0 | N187: Berker GmbH & Co. KG, Klagebach 38, Schalksmuhle, Нiмеччина | O187: Китай | P187: 8539398000 | Q187: 4011334353515
A188: 181110 | B188: Нажимна кнопка, колір - хромовий, 1.5А/12В, Berker TS | C188: C | D188: шт | E188: 1260.31 | F188: 1260.31 | G188: berker-сенсори | J188: 10 | K188: 10 | L188: 0 | M188: 0 | N188: Berker GmbH & Co. KG, Klagebach 38, Schalksmuhle, Нiмеччина | O188: Нiмеччина | P188: 8536501190 | Q188: 4011334269915
A189: 181112 | B189: Нажимна кнопка, колір - золотий, 1.5А/12В, Berker TS | C189: C | D189: шт | E189: 1540.47 | F189: 1540.47 | G189: berker-сенсори | J189: 10 | K189: 10 | L189: 0 | M189: 0 | N189: Berker GmbH & Co. KG, Klagebach 38, Schalksmuhle, Нiмеччина | O189: Китай | P189: 8536501190 | Q189: 4011334269922
A190: 181113 | B190: Нажимна кнопка, колір - сталевий, 1.5А/12В, Berker TS | C190: C | D190: шт | E190: 1680.55 | F190: 1680.55 | G190: berker-сенсори | J190: 10 | K190: 10 | L190: 0 | M190: 0 | N190: Berker GmbH & Co. KG, Klagebach 38, Schalksmuhle, Нiмеччина | O190: Китай | P190: 8536501190 | Q190: 4011334269939
A191: 181200 | B191: Ручка з латуні для поворотного вимикача/кнопки, 1930/Glas | C191: C | D191: шт | E191: 1568.48 | F191: 1568.48 | G191: berker-розетки/вимикачі | H191: 1930+Glas | I191: універсальні | J191: 1 | K191: 1 | L191: 0 | M191: 0 | N191: Berker GmbH & Co. KG, Klagebach 38, Schalksmuhle, Нiмеччина | O191: Нiмеччина | P191: 8538909900 | Q191: 4011334506904
A192: 181305 | B192: Подвод для кабеля, чорний, 1930 | C192: C | D192: шт | E192: 70.86 | F192: 70.86 | G192: berker-розетки/вимикачі | H192: 1930-рамки | I192: чорний | J192: 10 | K192: 10 | L192: 0 | M192: 0 | N192: Berker GmbH & Co. KG, Klagebach 38, Schalksmuhle, Нiмеччина | O192: Нiмеччина | P192: 3925908000 | Q192: 4011334018506
A193: 181309 | B193: Подвод для кабеля, пол.білизна, 1930 | C193: C | D193: шт | E193: 70.86 | F193: 70.86 | G193: berker-розетки/вимикачі | H193: 1930-рамки | I193: пол.білий | J193: 10 | K193: 10 | L193: 0 | M193: 0 | N193: Berker GmbH & Co. KG, Klagebach 38, Schalksmuhle, Нiмеччина | O193: Нiмеччина | P193: 3925908000 | Q193: 4011334018513
A194: 181705 | B194: Ввод для труб, чорний, 1930 | C194: C | D194: шт | E194: 132.66 | F194: 132.66 | G194: berker-розетки/вимикачі | H194: 1930-рамки | I194: чорний | J194: 10 | K194: 10 | L194: 0 | M194: 0 | N194: Berker GmbH & Co. KG, Klagebach 38, Schalksmuhle, Нiмеччина | O194: Нiмеччина | P194: 3925908000 | Q194: 4011334018544
A195: 181709 | B195: Ввод для труб, пол.білизна, 1930 | C195: C | D195: шт | E195: 132.66 | F195: 132.66 | G195: berker-розетки/вимикачі | H195: 1930-рамки | I195: пол.білий | J195: 10 | K195: 10 | L195: 0 | M195: 0 | N195: Berker GmbH & Co. KG, Klagebach 38, Schalksmuhle, Нiмеччина | O195: Нiмеччина | P195: 3925908000 | Q195: 4011334018551
A196: 181801 | B196: Профільний напівциліндр, з однаковими замикачами | C196: C | D196: шт | E196: 1470.84 | F196: 1470.84 | G196: berker-розетки/вимикачі | H196: універсальні | J196: 1 | K196: 1 | L196: 0 | M196: 0 | N196: Berker GmbH & Co. KG, Klagebach 38, Schalksmuhle, Нiмеччина | O196: Нiмеччина | P196: 8301409000 | Q196: 4011334018582
A197: 182305 | B197: З'єднувач для комбінацій для наружного монтажу, чорний, 1930 | C197: C | D197: шт | E197: 109.59 | F197: 109.59 | G197: berker-розетки/вимикачі | H197: 1930-рамки | I197: чорний | J197: 10 | K197: 10 | L197: 0 | M197: 0 | N197: Berker GmbH & Co. KG, Klagebach 38, Schalksmuhle, Нiмеччина | O197: Нiмеччина | P197: 3925908000 | Q197: 4011334214830
A198: 182309 | B198: З'єднувач для комбінацій для наружного монтажу, пол.білизна, 1930 | C198: C | D198: шт | E198: 109.59 | F198: 109.59 | G198: berker-розетки/вимикачі | H198: 1930-рамки | I198: пол.білий | J198: 10 | K198: 10 | L198: 0 | M198: 0 | N198: Berker GmbH & Co. KG, Klagebach 38, Schalksmuhle, Нiмеччина | O198: Нiмеччина | P198: 3925908000 | Q198: 4011334214854
A199: 189510 | B199: Гвинт спеціальний 2xM3.5x50мм, колір: хромовий, Berker TS | C199: C | D199: шт | E199: =ROUND(F199*(1-скидка),2) -> 280.16 | F199: 280.16 | G199: berker-сенсори | J199: 1 | K199: 1 | L199: 0 | M199: 0 | N199: Berker GmbH & Co. KG, Klagebach 38, Schalksmuhle, Нiмеччина | O199: Нiмеччина | P199: 7318155890 | Q199: 4011334253969
A200: 189512 | B200: Гвинт спеціальний 2xM3.5x50мм, колір: золотий, Berker TS | C200: C | D200: шт | E200: 280.16 | F200: 280.16 | G200: berker-сенсори | J200: 1 | K200: 1 | L200: 0 | M200: 0 | N200: Berker GmbH & Co. KG, Klagebach 38, Schalksmuhle, Нiмеччина | O200: Нiмеччина | P200: 7318155890 | Q200: 4011334253976
A201: 189513 | B201: Гвинт спеціальний 2xM3.5x50мм, колір: сталевий, Berker TS | C201: C | D201: шт | E201: 280.16 | F201: 280.16 | G201: berker-сенсори | J201: 1 | K201: 1 | L201: 0 | M201: 0 | N201: Berker GmbH & Co. KG, Klagebach 38, Schalksmuhle, Нiмеччина | O201: Нiмеччина | P201: 7318155890 | Q201: 4011334253983
... 4299 more rows

Sheet залишок
A1: 126
A2: 129
A3: 161 | D3: 1. В ФАЙЛІ РОЗСИЛКИ З ЗАЛИШКАМИ ВІДІЛИТИ ЦІЛКОМ 2 СТОВБЦЯ: З АРТИКУЛОМ ТА ЗАЛИШКОМ
A4: 179 | D4: І СКОПІЮВАТИ ЇХ В БУФЕР ОБМІНУ
A5: 1040
A6: 1090 | D6: 2. НА ЦЬОМУ ЛИСТІ ВИДІЛИТИ ЦІЛКОМ СТОВБЦІ А ТА В
A7: 1091
A8: 1407 | D8: 3. ВСТАВИТИ ТІЛЬКИ ЗНАЧЕННЯ (спеціальна вставка)
A9: 1409
A10: 1600 | D10: Таким чином значення на данному листі будуть перезаписані і на бланку замовлення
A11: 1647 | D11: в останньому стовбці буде відображатися актуальний залишок для кожного товару.
A12: 1675
A13: 1680
A14: 1809
A15: 1812
A16: 1824
A17: 1870
A18: 2040
A19: 2764
A20: 2766
A21: 2769
A22: 2905
A23: 2906
A24: 2908
A25: 3032
A26: 3035
A27: 3036
A28: 3037
A29: 3446
A30: 3966
A31: 4246
A32: 4502
A33: 4515
A34: 4522
A35: 4539
A36: 4554
A37: 4555
A38: 4562
A39: 4568
A40: 4586
A41: 4587
A42: 4593
A43: 5031
A44: 5035
A45: 12410
A46: 101000
A47: 103920
A48: 103921
A49: 104001
A50: 106420
A51: 106421
A52: 109020
A53: 109021
A54: 109110
A55: 109111
A56: 109112
A57: 109200
A58: 109300
A59: 138101
A60: 138109
A61: 138141
A62: 138149
A63: 138151
A64: 138159
A65: 138169
A66: 140701
A67: 140901
A68: 146102
A69: 146109
A70: 146302
A71: 146309
A72: 146402
A73: 146409
A74: 146802
A75: 146809
A76: 146902
A77: 146909
A78: 147202
A79: 147209
A80: 160002
A81: 164701
A82: 164769
A83: 167504
A84: 260005
A85: 260009
A86: 281901
A87: 303303
A88: 303520
A89: 303808
A90: 307605
A91: 387600
A92: 454001
A93: 454002
A94: 454101
A95: 454105
A96: 454107
A97: 457205
A98: 457209
A99: 457305
A100: 457309
A101: 474005
A102: 474520
A103: 474521
A104: 503520
A105: 505102
A106: 633023
A107: 712105
A108: 1789909
A109: 10001001
A110: 10005810
A111: 10006101
A112: 10012045
A113: 10012084
A114: 10012089
A115: 10091909
A116: 10098982
A117: 10098989
A118: 10107100
A119: 10107200
A120: 10112014
A121: 10112045
A122: 10112104
A123: 10112116
A124: 10112145
A125: 10112189
A126: 10112209
A127: 10112214
A128: 10112216
A129: 10112245
A130: 10112284
A131: 10112289
A132: 10113001
A133: 10113004
A134: 10113005
A135: 10113012
A136: 10113016
A137: 10113021
A138: 10113022
A139: 10113025
A140: 10113046
A141: 10113606
A142: 10113609
A143: 10113904
A144: 10116086
A145: 10116089
A146: 10116096
A147: 10116099
A148: 10116414
A149: 10116616
A150: 10116904
A151: 10116909
A152: 10116919
A153: 10118982
A154: 10118989
A155: 10119909
A156: 10122145
A157: 10122189
A158: 10122245
A159: 10122289
A160: 10123001
A161: 10123004
A162: 10123005
A163: 10123012
A164: 10123016
A165: 10123021
A166: 10123022
A167: 10123025
A168: 10123046
A169: 10123606
A170: 10123609
A171: 10123904
A172: 10126086
A173: 10126089
A174: 10126096
A175: 10126099
A176: 10126414
A177: 10126616
A178: 10126909
A179: 10128982
A180: 10128989
A181: 10129909
A182: 10132145
A183: 10132189
A184: 10132245
A185: 10132289
A186: 10133001
A187: 10133004
A188: 10133005
A189: 10133012
A190: 10133016
A191: 10133021
A192: 10133022
A193: 10133025
A194: 10133046
A195: 10133904
A196: 10136086
A197: 10136089
A198: 10136096
A199: 10136099
A200: 10136414
... 1644 more rows

Sheet new-items
A1: Нові товари в асортіменті:
A2: Артикул | B2: Опис товару | C2: АВС | D2: Ціна без знижки
A3: EER501 | B3: Датчик руху 360°, внутрішньої установки, НВ контакт, виявлення Ø10м | C3: B | D3: 2595.6
A4: EER503 | B4: Датчик руху 360°, внутрішньої установки, НВ контакт, виявлення Ø20м | C4: B | D4: 3090
A5: EER505 | B5: Датчик руху коридорний 360°, внутрішньої установки, НВ контакт, виявлення 5x30м | C5: B | D5: 4120
A6: EER513 | B6: Датчик руху 360°, зовнішньої установки, НВ контакт, виявлення Ø20м | C6: B | D6: 3090
A7: EER515 | B7: Датчик руху коридорний 360°, зовнішньої установки, НВ контакт, виявлення 5x30м | C7: B | D7: 4120
A8: EER518 | B8: Датчик руху висотний 360°, зовнішньої установки, НВ контакт, висота виявлення 8м | C8: B | D8: 4120
A9: HEW400JR | B9: Автоматичний вимикач h3+, P630, In=400A, 3п, 70kA, LSI | C9: C | D9: 50181.6
A10: HEW401JR | B10: Автоматичний вимикач h3+, P630, In=400A, 4п, 70kA, LSI | C10: C | D10: 64024.8
A11: HEW630JR | B11: Автоматичний вимикач h3+, P630, In=630A, 3п, 70kA, LSI | C11: C | D11: 55372.8
A12: HEW631JR | B12: Автоматичний вимикач h3+, P630, In=630A, 4п, 70kA, LSI | C12: C | D12: 69216
A13: HMJ400GR | B13: Автоматичний вимикач h3, x630, In=400A, 3п, 50kA, LSnl | C13: C | D13: 23896
A14: HMJ401GR | B14: Автоматичний вимикач h3, x630, In=400A, 4п, 50kA, LSnl | C14: C | D14: 28840
A15: HMJ630GR | B15: Автоматичний вимикач h3, x630, In=630A, 3п, 50kA, LSnl | C15: B | D15: 28428
A16: HMJ631GR | B16: Автоматичний вимикач h3, x630, In=630A, 4п, 50kA, LSnl | C16: C | D16: 32548
A17: HMW400JR | B17: Автоматичний вимикач h3+, P630, In=400A, 3п, 50kA, LSI | C17: C | D17: 45526
A18: HMW401JR | B18: Автоматичний вимикач h3+, P630, In=400A, 4п, 50kA, LSI | C18: C | D18: 57474
A19: HMW630JR | B19: Автоматичний вимикач h3+, P630, In=630A, 3п, 50kA, LSI | C19: C | D19: 49199.8
A20: HMW631JR | B20: Автоматичний вимикач h3+, P630, In=630A, 4п, 50kA, LSI | C20: C | D20: 62294.4
A21: HNW400NR | B21: Автоматичний вимикач h3+, P630, In=400A, 3п, 40kA, Energy | C21: C | D21: 39799.2
A22: HNW401NR | B22: Автоматичний вимикач h3+, P630, In=400A, 4п, 40kA, Energy | C22: C | D22: 43260
A23: HNW630NR | B23: Автоматичний вимикач h3+, P630, In=630A, 3п, 40kA, Energy | C23: C | D23: 44990.4
A24: HNW631NR | B24: Автоматичний вимикач h3+, P630, In=630A, 4п, 40kA, Energy | C24: C | D24: 48451.2
A25: HPW400NR | B25: Автоматичний вимикач h3+, P630, In=400A, 3п, 110kA, Energy | C25: C | D25: 69216
A26: HPW401JR | B26: Автоматичний вимикач h3+, P630, In=400A, 4п, 110kA, LSI | C26: C | D26: 69216
A27: HPW401NR | B27: Автоматичний вимикач h3+, P630, In=400A, 4п, 110kA, Energy | C27: C | D27: 77868
A28: HPW630NR | B28: Автоматичний вимикач h3+, P630, In=630A, 3п, 110kA, Energy | C28: C | D28: 77868
A29: HPW631JR | B29: Автоматичний вимикач h3+, P630, In=630A, 4п, 110kA, LSI | C29: C | D29: 77868
A30: HPW631NR | B30: Автоматичний вимикач h3+, P630, In=630A, 4п, 110kA, Energy | C30: C | D30: 91876
A31: HBW400H | B31: Блок ПЗВ для вимикачів h3+ P630: 4п 400A, витік струму 0.1-10А, затримка 0-3сек | C31: C | D31: 32136
A32: HBW630H | B32: Блок ПЗВ для вимикачів h3+ P630: 4п 630A, витік струму 0.1-10А, затримка 0-3сек | C32: C | D32: 39552

Sheet new-prices
A1: Товари, для яких змінюются ціни:
A2: Артикул | B2: Опис товару | C2: АВС | D2: Ціна від 12.02.2024 | E2: Ціна попередня | F2: ∆
A3: 161 | B3: Датчик температури підлоги | C3: B | D3: 1008.58 | E3: 979.2 | F3: =D3/E3-1 -> 0.03000408497
A4: 1037 | B4: Панель для вводу кабеля, пол.білизна, 1930 | R.classic | C4: C | D4: 243.9 | E4: 236.8 | F4: 0.02998310811
A5: 1040 | B5: Накладка для розеток для гучномовців, USB-розеток, пол.білизна, 1930/Glas | C5: C | D5: 560.32 | E5: 544 | F5: 0.03
A6: 1061 | B6: Подвійна штепсельна розетка з вирівнюванням потенціалів | C6: C | D6: 1225.29 | E6: 1189.6 | F6: 0.03000168124
A7: 1090 | B7: Накладка скляна для поворотних вимикачів, GLASSERIE | C7: C | D7: 1120.23 | E7: 1087.6 | F7: 0.03000183891
A8: 1091 | B8: Рамка 1Х скляна GLASSERIE | C8: C | D8: 1120.23 | E8: 1087.6 | F8: 0.03000183891
A9: 1094 | B9: Накладка скляна кінцева для поворотних вимикачів, GLASSERIE | C9: C | D9: 1680.55 | E9: 1631.6 | F9: 0.03000122579
A10: 1095 | B10: Накладка скляна середня для поворотних вимикачів, GLASSERIE | C10: C | D10: 1680.55 | E10: 1631.6 | F10: 0.03000122579
A11: 1102 | B11: Рамка 2Х скляна GLASSERIE | C11: C | D11: 2800.78 | E11: 2719.2 | F11: 0.03000147102
A12: 1220 | B12: Кришка для свтлового сигналу Е14, без кольору, прозора, плоска | C12: C | D12: 176.75 | E12: 171.6 | F12: 0.03001165501
A13: 1221 | B13: Кришка для кнопки та світл.сигналу Е10, без кольору прозора, 1930/Glas | C13: C | D13: 588.34 | E13: 571.2 | F13: 0.0300070028
A14: 1222 | B14: Кришка для кнопки та світл.сигналу Е10, червона прозора, 1930/Glas | C14: C | D14: 685.98 | E14: 666 | F14: 0.03
A15: 1225 | B15: Заглушка для кнопки та світл.сигналу Е10, пол.білизна, 1930/Glas | C15: C | D15: 588.34 | E15: 571.2 | F15: 0.0300070028
A16: 1226 | B16: Заглушка для Е10, символ 'Світло', пол.білизна, 1930/Glas | C16: C | D16: 685.98 | E16: 666 | F16: 0.03
A17: 1227 | B17: Заглушка для Е10, символ 'Дзвоник', пол.білизна, 1930/Glas | C17: C | D17: 685.98 | E17: 666 | F17: 0.03
A18: 1229 | B18: Заглушка для кнопки та світл.сигналу Е10, червона прозора, 1930/Glas | C18: C | D18: 685.98 | E18: 666 | F18: 0.03
A19: 1230 | B19: Кришка для свтлового сигналу Е14, без кольору, прозора, висока | C19: C | D19: 176.75 | E19: 171.6 | F19: 0.03001165501
A20: 1231 | B20: Кришка для свтлового сигналу Е14, червона, прозора, висока | C20: C | D20: 176.75 | E20: 171.6 | F20: 0.03001165501
A21: 1232 | B21: Кришка для свтлового сигналу Е14, зелена, прозора, висока | C21: C | D21: 176.75 | E21: 171.6 | F21: 0.03001165501
A22: 1279 | B22: Заглушка для нажимних кнопок та світлових сигналів Е10, червона | C22: C | D22: 186.22 | E22: 180.8 | F22: 0.02997787611
A23: 1280 | B23: Кришка для нажимних кнопок та світлових сигналів Е10, без кольору | C23: C | D23: 120.3 | E23: 116.8 | F23: 0.02996575342
A24: 1281 | B24: Кришка для нажимних кнопок та світлових сигналів Е10, червона | C24: C | D24: 93.94 | E24: 91.2 | F24: 0.03004385965
A25: 1282 | B25: Кришка для нажимних кнопок та світлових сигналів Е10, жовта | C25: C | D25: 93.94 | E25: 91.2 | F25: 0.03004385965
A26: 1283 | B26: Кришка для нажимних кнопок та світлових сигналів Е10, зелена | C26: C | D26: 93.94 | E26: 91.2 | F26: 0.03004385965
A27: 1289 | B27: Захисна пластина для накладки інформаційного світлового сигналу, червона | C27: C | D27: 171.8 | E27: 166.8 | F27: 0.02997601918
A28: 1311 | B28: Скляна накладка, прозора, 1-місце, Berker TS | C28: C | D28: 2520.62 | E28: 2447.2 | F28: 0.03000163452
A29: 1321 | B29: Скляна накладка, прозора, 2-місця, Berker TS | C29: C | D29: 2754.22 | E29: 2674 | F29: 0.03
A30: 1341 | B30: Скляна накладка, прозора, 4-місця, Berker TS | C30: C | D30: 3361.1 | E30: 3263.2 | F30: 0.03000122579
A31: 1366 | B31: Скляна накладка, прозора, 6-місць, Berker TS | C31: C | D31: 8169.14 | E31: 7931.2 | F31: 0.03000050434
A32: 1388 | B32: Скляна накладка, прозора, 8-місць, Berker TS | C32: C | D32: 10409.59 | E32: 10106.4 | F32: 0.02999980211
A33: 1391 | B33: Скляна накладка, прозора, 1-місце, Berker TS | C33: C | D33: 2520.62 | E33: 2447.2 | F33: 0.03000163452
A34: 1392 | B34: Скляна накладка, прозора, 2-місця, Berker TS | C34: C | D34: 2754.22 | E34: 2674 | F34: 0.03
A35: 1394 | B35: Скляна накладка, прозора, 4-місця, Berker TS | C35: C | D35: 3361.1 | E35: 3263.2 | F35: 0.03000122579
A36: 1407 | B36: Центр.панель для розетки UAE, пол.білизна, 1930/Glas | C36: C | D36: 560.32 | E36: 544 | F36: 0.03
A37: 1409 | B37: Накладка для розетки UAE/E-DAT, пол.білизна, 1930/Glas | C37: C | D37: 560.32 | E37: 544 | F37: 0.03
A38: 1600 | B38: Елемент підсвічування 400В/0.5мА | C38: C | D38: 238.14 | E38: 231.2 | F38: 0.03001730104
A39: 1601 | B39: Елемент підсвічування Е10, 1.35мА/230В | C39: C | D39: 215.89 | E39: 209.6 | F39: 0.03000954198
A40: 1609 | B40: Елемент підсвічування для розетки з з/к, 1.5мА/230В | C40: C | D40: 186.22 | E40: 180.8 | F40: 0.02997787611
A41: 1647 | B41: Центр.панель вимикача з ручкою. Пластик. пол.білизна. 1930/Glas | C41: B | D41: 574.33 | E41: 557.6 | F41: 0.0300035868
A42: 1675 | B42: Елемент підсвічування, 230В/1мА | C42: B | D42: 130.6 | E42: 126.8 | F42: 0.02996845426
A43: 1676 | B43: Елемент підсвічування, 6В/35мА | C43: C | D43: 168.1 | E43: 163.2 | F43: 0.0300245098
A44: 1678 | B44: Елемент підсвічування світлодіодний Е10, 0.4мА/230В | C44: C | D44: 583.8 | E44: 566.8 | F44: 0.02999294284
A45: 1679 | B45: Елемент підсвічування світлодіодний Е14, 4.2мА/230В | C45: C | D45: 785.27 | E45: 762.4 | F45: 0.02999737671
A46: 1680 | B46: Елемент підсвічування зі світлодіодами з N-клемою для подвійного вимикача | C46: C | D46: 462.26 | E46: 408 | F46: 0.1329901961
A47: 1686 | B47: Елемент підсвічування зі світлодіодами білий 230В/1мА, для вимикачів/кнопок | C47: B | D47: 210.12 | E47: 204 | F47: 0.03
A48: 1687 | B48: Елемент підсвічування зі світлодіодами синій 12-48В, для вимикачів/кнопок | C48: C | D48: 210.12 | E48: 204 | F48: 0.03
A49: 1809 | B49: Монтажна коробка, Berker TS | C49: C | D49: 420.24 | E49: 408 | F49: 0.03
A50: 1818 | B50: Профільний напівциліндр, з різними замикачами | C50: C | D50: 1225.29 | E50: 1189.6 | F50: 0.03000168124
A51: 1824 | B51: Монтажна коробка для полих стін, Berker TS | C51: C | D51: 560.32 | E51: 544 | F51: 0.03
A52: 1847 | B52: Захисна накладка для вимикачів/кнопок | C52: C | D52: 35.84 | E52: 34.8 | F52: 0.02988505747
A53: 1848 | B53: Захисна накладка для штепсельних розеток SCHUKO | C53: C | D53: 37.49 | E53: 36.4 | F53: 0.02994505495
A54: 1849 | B54: Захисна накладка для розеток та вимикачів | C54: C | D54: 44.5 | E54: 43.2 | F54: 0.03009259259
A55: 1870 | B55: Монтажная коробка 2-місна, BERKER TS / TS Crystal / TS Sensor | C55: C | D55: 392.22 | E55: 380.8 | F55: 0.0299894958
A56: 1884 | B56: Фланець IP44 для виробів Berker/Lumina | C56: B | D56: 46.14 | E56: 44.8 | F56: 0.02991071429
A57: 1989 | B57: Набір для модуля Chich, пол.білизна/червоний | C57: C | D57: 2004.79 | E57: 1946.4 | F57: 0.02999897246
A58: 1990 | B58: Модуль заглушки | C58: C | D58: 161.92 | E58: 157.2 | F58: 0.03002544529
A59: 1992 | B59: Відеомодуль Chich, пол.білизна/жовтий | C59: C | D59: 998.69 | E59: 969.6 | F59: 0.03000206271
A60: 1993 | B60: Модуль S-Video, пол.білизна/чорний | C60: C | D60: 1715.57 | E60: 1665.6 | F60: 0.03000120077
A61: 1994 | B61: Модуль VGA, пол.білизна/чорний | C61: C | D61: 3675.86 | E61: 3568.8 | F61: 0.02999887918
A62: 2040 | B62: Таймер механічний, 0-15хв. | C62: C | D62: 3080.94 | E62: 2991.2 | F62: 0.03000133726
A63: 2041 | B63: Таймер механічний, 0-120хв. | C63: C | D63: 3080.94 | E63: 2991.2 | F63: 0.03000133726
A64: 2873 | B64: Поворотно-нажимний диммер 'Soft' LED/КЛЛ 3-100Вт, решта ламп 20-500Вт | C64: B | D64: 3221.02 | E64: 3127.2 | F64: 0.0300012791
A65: 2885 | B65: Поворотно-нажимний диммер з 'Soft'-регулюванням для ЛН та ВВГЛ 100-1000 Вт | C65: C | D65: 7352.14 | E65: 7138 | F65: 0.03
A66: 2901 | B66: Універсальний нажимний диммер подвійного включення | C66: C | D66: 5601.55 | E66: 5438.4 | F66: 0.02999963224
A67: 2909 | B67: Диммер поворотний, ЛН/ВВГЛ 20-200Вт, LED 3-40Вт, 230В | C67: B | D67: 1566.42 | E67: 1382.4 | F67: =D67/E67-1 -> 0.1331163194
A68: 2913 | B68: Компенсаційний модуль для LED-диммерів | C68: C | D68: 1213.75 | E68: 1178.4 | F68: 0.02999830278
A69: 2973 | B69: Диммер поворотний, універсальний 20-210Вт, LED 3-60Вт, 230В | C69: B | D69: 3080.94 | E69: 2991.2 | F69: 0.03000133726
A70: 2997 | B70: DALI-потенціометр з регулюванням білого, Soft-блокування | C70: C | D70: 2731.15 | E70: 2651.6 | F70: 0.03000075426
A71: 2998 | B71: DALI-потенціометр з регулюванням білого, з блоком живлення, Soft-блокування | C71: C | D71: 6161.87 | E71: 5982.4 | F71: 0.02999966569
A72: 3031 | B72: Вимикач 1-полюсний одноклавішний 10АХ/250В | C72: A | D72: 158.21 | E72: 133.6 | F72: 0.1842065868
A73: 3032 | B73: Вимикач одноклавішний 2-полюсний 10АХ/250В | C73: C | D73: 448.26 | E73: 435.2 | F73: 0.03000919118
A74: 3035 | B74: Вимикач 2-клавішний 10АХ/250В | C74: A | D74: 198.17 | E74: 167.2 | F74: 0.1852272727
A75: 3036 | B75: Вимикач/перемикач одноклавішний 10АХ/250В | C75: A | D75: 189.52 | E75: 160 | F75: 0.1845
A76: 3037 | B76: Вимикач одноклавішний хрестовий 10АХ/250В | C76: A | D76: 308.59 | E76: 260.4 | F76: 0.1850614439
A77: 3962 | B77: Вимикач шнуровий 2-полюсний 10АХ/250В | C77: C | D77: 560.32 | E77: 544 | F77: 0.03
A78: 3966 | B78: Вимикач/перемикач шнуровий 10АХ/250В | C78: C | D78: 679.39 | E78: 659.6 | F78: 0.03000303214
A79: 4468 | B79: Кабельний вивід Er, макс.діам.: 9мм | C79: C | D79: 291.28 | E79: 282.8 | F79: 0.02998585573
A80: 4470 | B80: Кабельний вивід, макс.діам.: 9мм | C80: B | D80: 291.28 | E80: 282.8 | F80: 0.02998585573
A81: 4538 | B81: Розетка UAE 8-полюсн., Кат.3 | C81: C | D81: 650.96 | E81: 632 | F81: 0.03
A82: 4539 | B82: Розетка UAE 8/8-полюсн., Кат.3 | C82: C | D82: 716.88 | E82: 696 | F82: 0.03
A83: 4562 | B83: Розетка UAE 2х8(4)-полюсн., Кат.3 | C83: C | D83: 716.88 | E83: 696 | F83: 0.03
A84: 4568 | B84: Розетка UAE 8(4)-полюсн., Кат.3 | C84: C | D84: 543.02 | E84: 527.2 | F84: 0.03000758725
A85: 4582 | B85: Модуль точки доступу WLAN, живлення 230В | C85: C | D85: 13863.8 | E85: 13460 | F85: 0.03
A86: 4583 | B86: Модуль точки доступу WLAN, живлення через Ethernet 48В | C86: C | D86: 16758.1 | E86: 16270 | F86: 0.03
A87: 4586 | B87: Розетка UAE 8-полюсн. екранована, Кат.6a | C87: B | D87: 957.08 | E87: 929.2 | F87: 0.03000430478
A88: 4587 | B88: Розетка UAE 8/8-полюсн. екранована, Кат.6a | C88: B | D88: 1150.3 | E88: 1116.8 | F88: 0.02999641834
A89: 4588 | B89: Розетка UAE 8/8-полюсн. екранована, Кат.6A iso | C89: C | D89: 1078.2 | E89: 1046.8 | F89: 0.02999617883
A90: 4604 | B90: Гніздо що вбудовується для вирівнювання потенціалів | C90: C | D90: 1127.23 | E90: 1094.4 | F90: 0.02999817251
A91: 4605 | B91: Кутовий штекер для вирівнювання потенціалів | C91: C | D91: 882.5 | E91: 856.8 | F91: 0.02999533147
A92: 4755 | B92: Розетка з з/к, зах.контактів, пол.білизна, 16А/250В 1930/Glas | C92: C | D92: 685.98 | E92: 666 | F92: 0.03
A93: 5031 | B93: Кнопка 1-клавішна 1НВ 10А/250В | C93: A | D93: 177.57 | E93: 156.8 | F93: 0.1324617347
A94: 5035 | B94: Кнопка 2-клавішна 2НВ загальна вхідна клема, 10А/250В | C94: A | D94: 245.96 | E94: 227.6 | F94: 0.08066783831
A95: 5036 | B95: Кнопка 1-клавішна перемикач 10А/250В | C95: C | D95: 266.15 | E95: 258.4 | F95: 0.02999226006
A96: 5101 | B96: Нажимна кнопка та світловий сигнал Е10 | C96: C | D96: 343.2 | E96: 333.2 | F96: 0.0300120048
A97: 5104 | B97: Нажимка кнопка та світл.сигнал Е10, пол.білизна, 2А/250В 1930/Glas | C97: C | D97: 1911.68 | E97: 1856 | F97: 0.03
A98: 100101 | B98: Рамка 1Х для наружного монтажу, чорна, 1930 | C98: C | D98: 700.4 | E98: 680 | F98: 0.03
A99: 100109 | B99: Рамка 1Х для наружного монтажу, пол.білизна, 1930 | C99: C | D99: 700.4 | E99: 680 | F99: 0.03
A100: 100920 | B100: Заглушка с центр.панеллю без цоколя, пол.білизна, 1930/Glas | C100: C | D100: 840.07 | E100: 815.6 | F100: 0.03000245218
A101: 100921 | B101: Заглушка с центр.панеллю без цоколя, чорна, 1930/Glas | C101: C | D101: 840.07 | E101: 815.6 | F101: 0.03000245218
A102: 102112 | B102: Основа для адаптерів з/у 1-кратна, Q.x | C102: C | D102: 163.98 | E102: 159.2 | F102: 0.03002512563
A103: 102122 | B103: Основа для адаптерів з/у 2-кратна, Q.x | C103: C | D103: 284.69 | E103: 276.4 | F103: 0.02999276411
A104: 102132 | B104: Основа для адаптерів з/у 3-кратна, Q.x | C104: C | D104: 376.16 | E104: 365.2 | F104: 0.0300109529
A105: 103701 | B105: Панель для вводу кабеля, чорна, 1930 | R.classic | C105: C | D105: 291.7 | E105: 283.2 | F105: 0.03001412429
A106: 103920 | B106: Центр.панель для анетенної розетки 2 отвори, пол.білизна, 1930/Glas | C106: C | D106: 560.32 | E106: 544 | F106: 0.03
A107: 103921 | B107: Центр.панель для анетенної розетки 2 отвори, чорна, 1930/Glas | C107: C | D107: 560.32 | E107: 544 | F107: 0.03
A108: 104001 | B108: Накладка для розеток для гучномовців, USB-розеток, чорна, 1930/Glas | C108: C | D108: 560.32 | E108: 544 | F108: 0.03
A109: 106420 | B109: Центр.панель для анетенної розетки 3 отвори, пол.білизна, 1930/Glas | C109: C | D109: 560.32 | E109: 544 | F109: 0.03
A110: 106421 | B110: Центр.панель для анетенної розетки 3 отвори, чорна, 1930/Glas | C110: C | D110: 560.32 | E110: 544 | F110: 0.03
A111: 109009 | B111: Накладка скляна для поворотних вимикачів, пол.білизна, Glas | C111: C | D111: 1120.23 | E111: 1087.6 | F111: 0.03000183891
A112: 109109 | B112: Рамка 1Х скляна, пол.білизна, Glas | C112: C | D112: 1120.23 | E112: 1087.6 | F112: 0.03000183891
A113: 109200 | B113: Рамка 1Х скляна кінцева GLASSERIE | C113: C | D113: 1680.55 | E113: 1631.6 | F113: 0.03000122579
A114: 109219 | B114: Рамка 1Х скляна кінцева, пол.білизна, Glas | C114: C | D114: 1680.55 | E114: 1631.6 | F114: 0.03000122579
A115: 109300 | B115: Рамка 1Х скляна середня GLASSERIE | C115: C | D115: 1680.55 | E115: 1631.6 | F115: 0.03000122579
A116: 109309 | B116: Рамка 1Х скляна середня, пол.білизна, Glas | C116: C | D116: 1680.55 | E116: 1631.6 | F116: 0.03000122579
A117: 109409 | B117: Накладка скляна кінцева для поворотних вимикачів, пол.білизна, Glas | C117: C | D117: 1680.55 | E117: 1631.6 | F117: 0.03000122579
A118: 109509 | B118: Накладка скляна середня для поворотних вимикачів, пол.білизна, Glas | C118: C | D118: 1680.55 | E118: 1631.6 | F118: 0.03000122579
A119: 110209 | B119: Рамка 2Х скляна, пол.білизна, Glas | C119: C | D119: 2800.78 | E119: 2719.2 | F119: 0.03000147102
A120: 122501 | B120: Заглушка для кнопки та світл.сигналу Е10, чорна, 1930/Glas | C120: C | D120: 588.34 | E120: 571.2 | F120: 0.0300070028
A121: 122902 | B121: Заглушка для кнопки та світл.сигналу Е10, без кольору прозора, 1930/Glas | C121: C | D121: 685.98 | E121: 666 | F121: 0.03
A122: 127902 | B122: Заглушка для нажимних кнопок та світлових сигналів Е10, без кольору | C122: C | D122: 186.22 | E122: 180.8 | F122: 0.02997787611
A123: 127903 | B123: Заглушка для нажимних кнопок та світлових сигналів Е10, зелена | C123: C | D123: 186.22 | E123: 180.8 | F123: 0.02997787611
A124: 128903 | B124: Захисна пластина для накладки інформаційного світлового сигналу, зелена | C124: C | D124: 171.8 | E124: 166.8 | F124: 0.02997601918
A125: 133111 | B125: Основа самозатухаюча для рамки 1-кр. для наружного монтажу, чорна, 1930 | C125: C | D125: 440.84 | E125: 428 | F125: 0.03
A126: 133119 | B126: Основа самозатухаюча для рамки 1-кр. для наружного монтажу, пол.білизна, 1930 | C126: C | D126: 440.84 | E126: 428 | F126: 0.03
A127: 138101 | B127: Рамка 1Х чорна, 1930 | C127: B | D127: 294.17 | E127: 285.6 | F127: 0.0300070028
A128: 138109 | B128: Рамка 1Х пол.білизна, 1930 | C128: B | D128: 294.17 | E128: 285.6 | F128: 0.0300070028
A129: 138121 | B129: Рамка 2Х чорна, 1930 | C129: C | D129: 700.4 | E129: 680 | F129: 0.03
A130: 138129 | B130: Рамка 2Х пол.білизна, 1930 | C130: C | D130: 700.4 | E130: 680 | F130: 0.03
A131: 138131 | B131: Рамка 3Х чорна, 1930 | C131: C | D131: 1120.23 | E131: 1087.6 | F131: =D131/E131-1 -> 0.03000183891
A132: 138139 | B132: Рамка 3Х пол.білизна, 1930 | C132: C | D132: 1120.23 | E132: 1087.6 | F132: 0.03000183891
A133: 138141 | B133: Рамка 1Х кінцева, чорна, 1930 | C133: B | D133: 377.8 | E133: 366.8 | F133: 0.02998909487
A134: 138149 | B134: Рамка 1Х кінцева, пол.білизна, 1930 | C134: B | D134: 377.8 | E134: 366.8 | F134: 0.02998909487
A135: 138151 | B135: Рамка 1Х середня, чорна, 1930 | C135: B | D135: 462.26 | E135: 448.8 | F135: 0.02999108734
A136: 138159 | B136: Рамка 1Х середня, пол.білизна, 1930 | C136: B | D136: 462.26 | E136: 448.8 | F136: 0.02999108734
A137: 138165 | B137: Рамка 1Х керамічна чорна 1930/PORZELLAN | C137: C | D137: 1330.76 | E137: 1292 | F137: 0.03
A138: 138169 | B138: Рамка 1Х керамічна пол.білизна 1930/PORZELLAN | C138: C | D138: 1330.76 | E138: 1292 | F138: 0.03
A139: 138201 | B139: Рамка 1Х чорна з внутр.отвором діам.58мм, 1930 | C139: C | D139: 294.17 | E139: 285.6 | F139: 0.0300070028
A140: 138209 | B140: Рамка 1Х пол.білизна з внутр.отвором діам.58мм, 1930 | C140: C | D140: 294.17 | E140: 285.6 | F140: 0.0300070028
A141: 140302 | B141: Накладка розекти вирівнювання потенціалів, біла S.1 | C141: C | D141: 196.11 | E141: 190.4 | F141: 0.0299894958
A142: 140309 | B142: Накладка розекти вирівнювання потенціалів, пол.білизна S.1 | C142: C | D142: 196.11 | E142: 190.4 | F142: 0.0299894958
A143: 140701 | B143: Центр.панель для розетки UAE, чорна, 1930/Glas | C143: C | D143: 560.32 | E143: 544 | F143: 0.03
A144: 140901 | B144: Накладка для розетки UAE/E-DAT, чорна, 1930/Glas | C144: C | D144: 560.32 | E144: 544 | F144: 0.03
A145: 141202 | B145: Накладка для XLR-циліндричних елктроз'єнувачів D-серії, біла S.1 | C145: C | D145: 292.52 | E145: 284 | F145: 0.03
A146: 141209 | B146: Накладка для XLR-циліндричних елктроз'єнувачів D-серії, пол.білизна S.1 | C146: C | D146: 292.52 | E146: 284 | F146: 0.03
A147: 143102 | B147: Накладка для сигнальних та контрольних приладів, біла S.1 | C147: C | D147: 289.64 | E147: 281.2 | F147: 0.03001422475
A148: 143109 | B148: Накладка для сигнальних та контрольних приладів, пол.білизна S.1 | C148: C | D148: 289.64 | E148: 281.2 | F148: 0.03001422475
A149: 143202 | B149: Накладка для сигнальних та контрольних приладів, Ш 22.5мм, біла S.1 | C149: C | D149: 289.64 | E149: 281.2 | F149: 0.03001422475
A150: 143209 | B150: Накладка для сигнальних та контрольних приладів, Ш 22.5мм, пол.білизна S.1 | C150: C | D150: 289.64 | E150: 281.2 | F150: 0.03001422475
A151: 146102 | B151: Накладка для подвійного модуля RDM, біла S.1 | C151: C | D151: 730.48 | E151: 709.2 | F151: 0.03000564016
A152: 146109 | B152: Накладка для подвійного модуля RDM, пол.білизна S.1 | C152: C | D152: 653.43 | E152: 634.4 | F152: 0.02999684741
A153: 146302 | B153: Накладка для модулів AMP, біла S.1 | C153: C | D153: 490.28 | E153: 476 | F153: 0.03
A154: 146304 | B154: Накладка для модулів AMP, сталевий лак, K.5/ARSYS | C154: C | D154: 965.73 | E154: 937.6 | F154: 0.03000213311
A155: 146309 | B155: Накладка для модулів AMP, пол.білизна S.1 | C155: C | D155: 490.28 | E155: 476 | F155: 0.03
A156: 146402 | B156: Накладка для модулів Modular Jacks 'Krone', біла S.1 | C156: C | D156: 529.42 | E156: 514 | F156: 0.03
A157: 146409 | B157: Накладка для модулів Modular Jacks 'Krone', пол.білизна S.1 | C157: C | D157: 529.42 | E157: 514 | F157: 0.03
A158: 147202 | B158: Накладка для 1 чи 2 єдиних модулів RDM, біла S.1 | C158: C | D158: 637.36 | E158: 618.8 | F158: 0.02999353588
A159: 147209 | B159: Накладка для 1 чи 2 єдиних модулів RDM, пол.білизна S.1 | C159: C | D159: 637.36 | E159: 618.8 | F159: 0.02999353588
A160: 148304 | B160: Накладка для ТВ-розетки 4 отвори, сталевий лак, K.5/ARSYS | C160: C | D160: 392.22 | E160: 380.8 | F160: 0.0299894958
A161: 148404 | B161: Накладка для ТВ-розетки 4 отвори, сталевий лак, K.5/ARSYS | C161: C | D161: 392.22 | E161: 380.8 | F161: 0.0299894958
A162: 160002 | B162: Елемент підсвічування 230В/0.9мА | C162: B | D162: 235.25 | E162: 228.4 | F162: 0.02999124343
A163: 160510 | B163: Елемент підсвічування 230В/1мА | C163: C | D163: 140.08 | E163: 136 | F163: 0.03
A164: 161003 | B164: Елемент підсвічування Е14 для світл.сигналу з плоскою кришкою, 3Вт, 230В | C164: C | D164: 348.55 | E164: 338.4 | F164: 0.02999408983
A165: 161013 | B165: Елемент підсвічування Е14 для світл.сигналу з високою кришкою, 3Вт, 230В | C165: C | D165: 348.55 | E165: 338.4 | F165: 0.02999408983
A166: 164701 | B166: Центр.панель вимикача з ручкою. Пластик. Чорна. 1930/Glas | C166: B | D166: 574.33 | E166: 557.6 | F166: 0.0300035868
A167: 167504 | B167: Елемент підсвічування, 230В/0.4мА | C167: C | D167: 159.44 | E167: 154.8 | F167: 0.02997416021
A168: 167601 | B168: Елемент підсвічування, 24В/35мА | C168: C | D168: 168.1 | E168: 163.2 | F168: 0.0300245098
A169: 167602 | B169: Елемент підсвічування, 12В/65мА | C169: C | D169: 168.1 | E169: 163.2 | F169: 0.0300245098
A170: 167603 | B170: Елемент підсвічування, 48В/25мА | C170: C | D170: 252.14 | E170: 244.8 | F170: 0.02998366013
A171: 167801 | B171: Елемент підсвічування світлодіодний Е10, 0.4мА/230В | C171: C | D171: 386.04 | E171: 374.8 | F171: 0.02998932764
A172: 167802 | B172: Елемент підсвічування світлодіодний Е10, 0.4мА/230В | C172: C | D172: 386.04 | E172: 374.8 | F172: 0.02998932764
A173: 167803 | B173: Елемент підсвічування світлодіодний Е10, 0.4мА/230В | C173: C | D173: 841.72 | E173: 817.2 | F173: 0.03000489476
A174: 167804 | B174: Елемент підсвічування світлодіодний Е10, 0.4мА/230В | C174: C | D174: 554.14 | E174: 538 | F174: 0.03
A175: 167901 | B175: Елемент підсвічування світлодіодний Е14, 4.2мА/230В | C175: C | D175: 593.28 | E175: 576 | F175: 0.03
A176: 167902 | B176: Елемент підсвічування світлодіодний Е14, 4.2мА/230В | C176: C | D176: 593.28 | E176: 576 | F176: 0.03
A177: 167903 | B177: Елемент підсвічування світлодіодний Е14, 4.2мА/230В | C177: C | D177: 789.39 | E177: 766.4 | F177: 0.0299973904
A178: 167904 | B178: Елемент підсвічування світлодіодний Е14, 4.2мА/230В | C178: C | D178: 950.48 | E178: 922.8 | F178: 0.02999566537
A179: 168000 | B179: LED-модуль з N-контактом для вимикачів 1930/Glas/R.classic, 230В | C179: C | D179: 1349.3 | E179: 1310 | F179: 0.03
A180: 168001 | B180: LED-модуль для вимикачів 1930/Glas/R.classic, 230В | C180: C | D180: 1349.3 | E180: 1310 | F180: 0.03
A181: 168050 | B181: LED-модуль освітлення по контуру для 1Х рамки Q.7 | C181: C | D181: 2100.79 | E181: 2039.6 | F181: 0.03000098058
A182: 168055 | B182: LED-модуль освітлення вниз для 1Х рамки Q.7 | C182: C | D182: 1820.63 | E182: 1767.6 | F182: 0.03000113148
A183: 168601 | B183: Елемент підсвічування зі світлодіодами 230В/0.4мА, для вимикачів/кнопок | C183: C | D183: 210.12 | E183: 204 | F183: 0.03
A184: 181110 | B184: Нажимна кнопка, колір - хромовий, 1.5А/12В, Berker TS | C184: C | D184: 1260.31 | E184: 1223.6 | F184: 0.03000163452
A185: 181112 | B185: Нажимна кнопка, колір - золотий, 1.5А/12В, Berker TS | C185: C | D185: 1540.47 | E185: 1495.6 | F185: 0.03000133726
A186: 181113 | B186: Нажимна кнопка, колір - сталевий, 1.5А/12В, Berker TS | C186: C | D186: 1680.55 | E186: 1631.6 | F186: 0.03000122579
A187: 181200 | B187: Ручка з латуні для поворотного вимикача/кнопки, 1930/Glas | C187: C | D187: 1568.48 | E187: 1522.8 | F187: 0.02999737326
A188: 181305 | B188: Подвод для кабеля, чорний, 1930 | C188: C | D188: 70.86 | E188: 68.8 | F188: 0.02994186047
A189: 181309 | B189: Подвод для кабеля, пол.білизна, 1930 | C189: C | D189: 70.86 | E189: 68.8 | F189: 0.02994186047
A190: 181705 | B190: Ввод для труб, чорний, 1930 | C190: C | D190: 132.66 | E190: 128.8 | F190: 0.0299689441
A191: 181709 | B191: Ввод для труб, пол.білизна, 1930 | C191: C | D191: 132.66 | E191: 128.8 | F191: 0.0299689441
A192: 181801 | B192: Профільний напівциліндр, з однаковими замикачами | C192: C | D192: 1470.84 | E192: 1428 | F192: 0.03
A193: 182305 | B193: З'єднувач для комбінацій для наружного монтажу, чорний, 1930 | C193: C | D193: 109.59 | E193: 106.4 | F193: 0.02998120301
A194: 182309 | B194: З'єднувач для комбінацій для наружного монтажу, пол.білизна, 1930 | C194: C | D194: 109.59 | E194: 106.4 | F194: 0.02998120301
A195: 189510 | B195: Гвинт спеціальний 2xM3.5x50мм, колір: хромовий, Berker TS | C195: C | D195: 280.16 | E195: 272 | F195: =D195/E195-1 -> 0.03
A196: 189512 | B196: Гвинт спеціальний 2xM3.5x50мм, колір: золотий, Berker TS | C196: C | D196: 280.16 | E196: 272 | F196: 0.03
A197: 189513 | B197: Гвинт спеціальний 2xM3.5x50мм, колір: сталевий, Berker TS | C197: C | D197: 280.16 | E197: 272 | F197: 0.03
A198: 260205 | B198: USB-розетка подвійна, 230В, антрацит | C198: B | D198: 2268.88 | E198: 2202.8 | F198: 0.02999818413
A199: 260209 | B199: USB-розетка подвійна, 230В, пол.білизна | C199: B | D199: 2268.88 | E199: 2202.8 | F199: 0.02999818413
A200: 260215 | B200: USB-розетка подвійна, 230В, чорна, 1930/Glas/R.classic | C200: C | D200: 2100.79 | E200: 2039.6 | F200: 0.03000098058
... 7544 more rows

Sheet End-of-Life
A1: Товари, що вилучені з асортименту і доступні лише за умови
A2: наявності на складі ДП “ПОЛО-Електрообладнання” :
A3: Артикул | B3: Опис товару
A4: CDH516C | B4: ПЗВ 2P 10kA 16A 30mA A-Hi
A5: CDA616C | B5: ПЗВ 4P 10kA 16A 30mA A
